Workbook

Sheet For Help
A1: For other States(NPS Deduction) Updated On 19-02-2023
B2: ←:: सहायतार्थ बिंदु ::→ | D2: आयकर गणना प्रपत्र देखें
B3: 1- सबसे पहले Basic Data शीट में सफ़ेद सेल्स में कार्मिक से जुड़े विद्यालय,स्वयं कार्मिक तथा वेतन सम्बंधित विवरण फिल करें. यहाँ भत्ते तथा कटौतियों के विषय आप अपनी सुविधानुसार बदल सकते हो.
B4: 2- Basic Data भरने के पश्चात Exemp.(HRA+Other) & Other income वाली शीट में HRA अतिरिक्त आय, कटौतियां आदि भरें. (हालाँकि नियमानुसार HRA की गणना स्वतः की हुई मिलेगी फिर भी आपसे जुड़े DDO के निर्देशानुसार इसे बदल भी सकते है.)
B5: 3- Basic Data एंट्री के साथ ही आपको GA-55 तैयार मिलेगा जो कि पूर्णत: अनलॉक है आप Pay Man./Pri Pay Man. से निकाले ऑनलाइन GA-55 रिपोर्ट से भली भांति मिलान कर आवश्यकतानुसार बदलाव भी कर सकते हैं. | D5: Form-16 देखें
B6: 5- यदि गत वर्षों के बकाया वेतन का इस वर्ष आयकर की कटौती के साथ भुगतान किया गया है, तो आप आवश्यक फॉर्म-10E भी 10 E Us 89(1) शीट में तैयार कर धारा 89(1) के तहत प्राप्य छूट को आयकर गणना प्रपत्र, फॉर्म-16 में अंकित कर सकते हो. | G6: Ummed Tarad
B7: 4- उक्त कार्य पूर्ण करने के बाद आपके सामने कार्मिक से जुडी पुरानी तथा नई कर व्यवस्था (Old Tax Regime/New Tax Regime) के अनुसार आयकर गणना प्रपत्र, फॉर्म-16, HRA से जुडी आवश्यक रिसिप्ट तैयार है, प्रिंट ले सकते हैं. | D7: HRA Receipt देखें | G7: Teacher (GSSS Raimalwada, Jodhpur)
B8: नोट :- हालाँकि इस प्रोग्राम को बनाते समय पूर्ण सावधानी के साथ तैयार किया गया है. मानवीय भूल सहज है. यदि किसी भी प्रकार की कोई समस्या, शंका तथा आपत्ति की स्थिति में आप अपने विवेक को प्रमुखता दें. | G8: Mob.-9166973141 Email Id-ummedtrdedu@gmail.com

Sheet Basic Deta
B1: PREPARED BY :- UMMED TARAD (TEACHER, GSSS RAIMALWADA-BAPINI, JODHPUR)
B2: Mobile Number-9166973141, Email ID-ummedtrdedu@gmail.com
B3: Deta Entry For School and Employee
B4: School Details
B5: DPO (Estt.)Office :- | E5: District Education Officer, Education Department Primary Education of Bihar | K5: DPO Name :- | M5: SHARIQUE ASHRAF | O5: F.Y.
B6: Treasury :- | E6: BUXAR | G6: TAN No. :- | K6: DPO Father's Name :- | O6: 2022-23
B8: Employee Personal & Salary Details
B9: Employee Name | D9: Employee ID | F9: Designation | G9: Posting Place Name | J9: Basic Pay (March-22) | K9: Basic Pay (Jan-23) | L9: PAN No. | M9: Account Number | O9: Employee Age (Less 60=A, Between 60&80=B, Above 80=C)
B10: SHAHID ALI | D10: 123 | F10: Block Teacher | G10: M.S. BASUDHAR | J10: ₹ 28,660 | K10: =ROUNDUP(J10*1.03,-1)+10 -> ₹ 29,530 | L10: BFHPA0762G | M10: 742781203 | O10: A
B12: Employee Status (Regular/ Probation) | C12: Extra Paid Status | J12: Deducted Amount
C13: Bonus Amount | D13: DA | E13: DA | F13: Surrender | H13: Medical All. | I13: Extra | J13: EPF/Montholy Invest in Future Plan | K13: GIS/Group Ins. | L13: Contri. To Contributory Pension Scheme (80CCC) | M13: LIC | N13: GROUP L.I.C. | O13: गृ.नि.अ. की किस्तों की वसूली/पेशाकर
D14: Jan-22 to Mar-22 | E14: Jul-22 to Sep-22 | F14: Claimed (Yes/No) | G14: Month
B15: Regular | C15: ₹ 0 | D15: YES | E15: YES | F15: NO | G15: 2022-12-01 | H15: ₹ 1,000 | I15: ₹ 0 | J15: ₹ 1,800 | K15: ₹ 0 | L15: ₹ 0 | M15: ₹ 0 | N15: ₹ 0 | O15: ₹ 1,000
B17: Income Tax Deduction
B18: 2022-03-01 | C18: 2022-04-01 | D18: 2022-05-01 | E18: 2022-06-01 | F18: 2022-07-01 | G18: 2022-08-01 | H18: 2022-09-01 | I18: 2022-10-01 | J18: 2022-11-01 | K18: 2022-12-01 | L18: 2023-01-01 | M18: 2023-02-01 | N18: Extra TDS Deposited (Via Challan etc)
B19: ₹ 0 | C19: =B19 -> ₹ 0 | D19: =C19 -> ₹ 0 | E19: ₹ 0 | F19: ₹ 0 | G19: ₹ 0 | H19: ₹ 0 | I19: ₹ 0 | J19: ₹ 0 | K19: ₹ 0 | L19: ₹ 0 | M19: ₹ 0 | N19: ₹ 0

Sheet Exemp.(HRA+Other) & Other incom
A1: ='Table (Income-Deduction)'!B1 -> District Education Officer, Education Department Primary Education of Bihar
A2: HRA CALCULATION
A3: Employee Name | C3: Post | D3: Posted Place | E3: Basic | F3: DA | G3: Total | H3: 10% | I3: PAID HRA | K3: HRA Rebate (Rs.) | L3: Yearly HRA Recipt (Rs.) | M3: Per Month HRA Reciept | N3: Quartly Amount For HRA Reciept | O3: House Owner Name | P3: House Owner Adress | Q3: House Owner PAN Number
A4: ='Basic Deta'!B10 -> SHAHID ALI | C4: ='Basic Deta'!F10 -> Block Teacher | D4: ='Basic Deta'!G10 -> M.S. BASUDHAR | E4: =SUM('Table (Income-Deduction)'!F10:F21,'Table (Income-Deduction)'!F29,'Table (Income-Deduction)'!F30) -> 345660 | F4: =SUM('Table (Income-Deduction)'!G24,'Table (Income-Deduction)'!G23,'Table (Income-Deduction)'!G10:G21,'Table (Income-Deduction)'!G29:G30) -> 128482 | G4: =E4+F4 -> 474142 | H4: =ROUNDUP((G4*0.1),0) -> 47415 | I4: =SUM('Table (Income-Deduction)'!H10:H21,'Table (Income-Deduction)'!H29:H30) -> 13822 | J4: =ROUNDUP((I4+H4),-1) -> 61240 | K4: =IF(T4>I4,I4,T4) -> 13822 | L4: =ROUNDUP((M4*12),-1) -> 61320 | M4: =IF(H4>100000,0,ROUNDUP(J4/12,-1)) -> 5110 | N4: =ROUNDUP((M4*3),-1) -> 15330 | T4: =IF(AND(M4=0,H4>100000),0,IF(AND(M4>0,L4>H4),(L4-H4),0)) -> 13905
A5: Extra income | N5: Deposit income tax other than salary
A6: Sr. No. | B6: Area of Income | L6: Amount | N6: Date | O6: Challan Number | P6: BSR Code | Q6: Amount
A7: 1 | B7: गृह सम्पति से प्राप्त किराया-आय | L7: 0 | Q7: 0
A8: 2 | B8: अन्य आय (बैंक/एफडी में जमा ब्याज/अन्य ब्याज आदि का योग | L8: 0 | Q8: 0 | XFD8: =IF(L8>50000,"B","A") -> A
A9: 3 | B9: अन्य आय | C9: (-----------------------------------------------------) | L9: 0 | Q9: 0 | XFD9: ='Basic Deta'!O10 -> A
A10: 4 | B10: अन्य आय | C10: (-----------------------------------------------------) | L10: 0 | Q10: 0 | XFD10: =CONCATENATE(XFD8,XFD9) -> AA
A11: Extra exemptions
A12: Sr. No. | B12: Area of Exemption | L12: Amout | N12: Sr. No. | O12: Area of Exemption | Q12: Amount
A13: 1 | B13: मनोरंजन भत्ता धारा 16 (ii) के अंतर्गत अधिकतम 5000 रूपये | L13: ₹ 0.00 | N13: 15 | O13: बचत खाते की जमा राशी पर प्राप्त ब्याज में छूट (80 TTA-10000 अधिकतम) | Q13: ₹ 0.00
A14: 2 | B14: व्यवसाय/पेशाकर धारा 16 (ii) के अंतर्गत अधिकतम 5000 रूपये | L14: ='Table (Income-Deduction)'!U32 -> ₹ 1,000.00 | N14: 16 | O14: बचत खाते की जमा राशी पर प्राप्त ब्याज में छूट (TTB-अधिकतम 50000) | Q14: ₹ 0.00
A15: 3 | B15: गृहकर | L15: ₹ 0.00 | N15: 17 | O15: धारा 80CCC - पेंशन प्लान हेतु अंशदान (NPS के अतिरिक्त) | Q15: ='Table (Income-Deduction)'!R32 -> ₹ 0.00
A16: 4 | B16: गृह ऋण किश्त मूल (जो वेतन से नहीं काटा गया) | L16: ₹ 0.00 | N16: 18 | O16: धारा 80CCD(1B) -नवीन पेंशन योजना में अतिरिक्त अंशदान (अधिकतम 50,000 अधिकतम) | Q16: ₹ 0.00
A17: 5 | B17: गृह ऋण किश्त ब्याज (जो वेतन से नहीं काटा गया) | L17: ₹ 0.00 | N17: 19 | O17: धारा 80D - चिकित्सा बीमा प्रीमियम (सामान्य 25,000, वरिष्ठ नागरिक 50,000) | Q17: ₹ 0.00
A18: 6 | B18: जीवन बिमा प्रीमियम (जो वेतन से नहीं काटा गया) LIC | L18: ₹ 0.00 | N18: 20 | O18: धारा 80DD - विकलांग आश्रितों का चिकित्सा उपचार (अधिकतम 75,000, 80%विक्लांगता 1,25,000) | Q18: ₹ 0.00
A19: 7 | B19: पी.एल.आई. PLI | L19: ₹ 0.00 | N19: 21 | O19: धारा 80DDB -विशिष्ठ रोगों के उपचार हेतु कटौती (सामान्य 40,000 एवं वरिष्ठ नागरिक 1 लाख) | Q19: ₹ 0.00
A20: 8 | B20: ट्यूशन फी | L20: ₹ 0.00 | N20: 22 | O20: धारा 80E - उच्च शिक्षा हेतु लिए ऋण पर ब्याज (धारा 80E) | Q20: ₹ 0.00
A21: 9 | B21: UPLI/वार्षिक प्लान | L21: ₹ 0.00 | N21: 23 | O21: धारा 80G -धर्मार्थ संस्थाओं को दिए दान (श्रेणी 'क' 100% एवं श्रेणी 'ख' 50%) | Q21: ₹ 0.00
A22: 10 | B22: राष्ट्रीय बचत पत्र (NSC) | L22: ₹ 0.00 | N22: 24 | O22: धारा 80U -स्थाई शारीरिक विक्लांगता (अधिकतम 75,000, 80%विक्लांगता 1,25,000) | Q22: ₹ 0.00
A23: 11 | B23: राष्ट्रीय बचत पत्र पर अदत ब्याज | L23: ₹ 0.00 | N23: 25 | O23: धारा 80 GGA -अनुमोदित वैज्ञानिक,सामाजिक,ग्रामीण विकास आदि हेतु दिया गया दान | Q23: ₹ 0.00
A24: 12 | B24: लोक भविष्य निधि (PPF) | L24: ₹ 0.00 | N24: 26 | O24: इक्विटी लिंक सेविंग स्कीम/Mutual Fund | Q24: ₹ 0.00
A25: 13 | B25: राष्ट्रीय बचत स्कीम (NSS) | L25: ₹ 0.00 | N25: 27 | O25: स्थिगित वार्षिकी | Q25: ₹ 0.00
A26: 14 | B26: सुकन्या समृद्धि योजना | L26: ₹ 0.00 | N26: 28 | O26: धारा 89 के अंतर्गत राहत | Q26: ='10 E Us 89(1) '!AR26 -> ₹ 0.00

Sheet Table (Income-Deduction)
B1: ='Basic Deta'!E5 -> District Education Officer, Education Department Primary Education of Bihar
B2: =IF('Basic Deta'!D10=0,0,CONCATENATE('Basic Deta'!G9,"",":","-"," ",'Basic Deta'!G10)) -> Posting Place Name:- M.S. BASUDHAR
C3: Employee Income and Deduction Details (For Itax Calculation) | U3: Financial Year :- | AA3: ='Basic Deta'!O6 -> 2022-23
B4: Employee Name :- | F4: ='Basic Deta'!B10 -> SHAHID ALI | J4: Designation :- | P4: ='Basic Deta'!F10 -> Block Teacher | T4: =IF('Basic Deta'!D10>0,"Employee ID :-","Posting Place:-") -> Employee ID :- | Y4: =IF('Basic Deta'!D10>0,'Basic Deta'!D10,'Basic Deta'!G10) -> 123
B6: PAN No. (Treasury) :- | F6: =CONCATENATE('Basic Deta'!L10," ","(",'Basic Deta'!E6,")") -> BFHPA0762G (BUXAR) | T6: Account Number :- | Z6: ='Basic Deta'!M10 -> 742781203
B8: Sr. No. | C8: Month | D8: TV Number | E8: TV Date | F8: Allowance | P8: Deductions | AB8: Net Payment | AC8: Income Tax
F9: Basic | G9: DA | H9: HRA | I9: DP | J9: ='Basic Deta'!H13 -> Medical All. | K9: ='Basic Deta'!I13 -> Extra | L9: Other-2 | M9: Other-1 | N9: Other-3 | O9: Groce Amount | P9: ='Basic Deta'!J13 -> EPF/Montholy Invest in Future Plan | Q9: ='Basic Deta'!K13 -> GIS/Group Ins. | R9: ='Basic Deta'!L13 -> Contri. To Contributory Pension Scheme (80CCC) | S9: ='Basic Deta'!M13 -> LIC | T9: ='Basic Deta'!N13 -> GROUP L.I.C. | U9: ='Basic Deta'!O13 -> गृ.नि.अ. की किस्तों की वसूली/पेशाकर | V9: Other-1 | W9: Other-2 | X9: Other-3 | Y9: Other-4 | Z9: Other-5 | AA9: Total Deductions
B10: 1 | C10: 2022-03-01 | F10: ='Basic Deta'!J10 -> 28660 | G10: =IF('Basic Deta'!$B$15="Regular",ROUND('Table (Income-Deduction)'!F10*31/100,0),0) -> 8885 | H10: =IF('Basic Deta'!$B$15="Regular",ROUND('Table (Income-Deduction)'!F10*0.04,0)) -> 1146 | J10: ='Basic Deta'!H15 -> 1000 | K10: ='Basic Deta'!I15 -> 0 | O10: =SUM(F10:N10) -> 39691 | P10: ='Basic Deta'!J15 -> 1800 | Q10: ='Basic Deta'!K15 -> 0 | R10: ='Basic Deta'!L15 -> 0 | S10: ='Basic Deta'!M15 -> 0 | T10: ='Basic Deta'!N15 -> 0 | U10: 0 | V10: ='Basic Deta'!L15 -> 0 | W10: ='Basic Deta'!K15 -> 0 | AA10: =SUM(P10:Z10) -> 1800 | AB10: =O10-AA10 -> 37891 | AC10: ='Basic Deta'!B19 -> 0 | AF10: =IF(C10='Basic Deta'!$G$15,"Yes","No") -> No | AG10: =IF(AF10="Yes",ROUND(F10/2,0),0) -> 0 | AH10: =IF(AF10="Yes",ROUND(G10/2,0),0) -> 0.00 | AI10: =IF(AF10="Yes",(F10+G10)/2,0) -> 0 | AJ10: =IF(AF10="yes",(AI10+(F10*0.03/2)),0) -> 0 | AK10: =IF($AF10="Yes",ROUND(AH10*0.03,0),0) -> 0.00
B11: 2 | C11: 2022-04-01 | F11: =F10 -> 28660 | G11: =IF('Basic Deta'!$B$15="Regular",ROUND('Table (Income-Deduction)'!F11*34/100,0),0) -> 9744 | H11: =IF('Basic Deta'!$B$15="Regular",ROUND('Table (Income-Deduction)'!F11*0.04,0)) -> 1146 | I11: =I10 -> 0 | J11: =J10 -> 1000 | K11: =K10 -> 0 | N11: =N10 -> 0 | O11: =SUM(F11:N11) -> 40550 | P11: =P10 -> 1800 | Q11: =Q10 -> 0 | R11: =R10 -> 0 | S11: 0 | T11: 0 | U11: 0 | V11: 0 | W11: 0 | X11: 0 | Y11: 0 | Z11: 0 | AA11: =SUM(P11:Z11) -> 1800 | AB11: =O11-AA11 -> 38750 | AC11: ='Basic Deta'!C19 -> 0 | AF11: =IF(C11='Basic Deta'!$G$15,"Yes","No") -> No | AG11: 0 | AH11: 0.00 | AI11: 0
B12: 3 | C12: 2022-05-01 | F12: =F11 -> 28660 | G12: =IF('Basic Deta'!$B$15="Regular",ROUND('Table (Income-Deduction)'!F12*34/100,0),0) -> 9744 | H12: =IF('Basic Deta'!$B$15="Regular",ROUND('Table (Income-Deduction)'!F12*0.04,0)) -> 1146 | I12: =I11 -> 0 | J12: 1000 | K12: 0 | M12: =M11 -> 0 | N12: =N11 -> 0 | O12: =SUM(F12:N12) -> 40550 | P12: =P11 -> 1800 | Q12: 0 | R12: 0 | S12: 0 | T12: 0 | U12: 0 | V12: 0 | W12: 0 | X12: 0 | Y12: 0 | Z12: 0 | AA12: =SUM(P12:Z12) -> 1800 | AB12: =O12-AA12 -> 38750 | AC12: ='Basic Deta'!D19 -> 0 | AF12: =IF(C12='Basic Deta'!$G$15,"Yes","No") -> No | AG12: 0 | AH12: 0.00 | AI12: 0
B13: 4 | C13: 2022-06-01 | F13: 28660 | G13: =IF('Basic Deta'!$B$15="Regular",ROUND('Table (Income-Deduction)'!F13*34/100,0),0) -> 9744 | H13: =IF('Basic Deta'!$B$15="Regular",ROUND('Table (Income-Deduction)'!F13*0.04,0)) -> 1146 | I13: 0 | J13: 1000 | K13: 0 | M13: 0 | N13: 0 | O13: =SUM(F13:N13) -> 40550 | P13: 1800 | Q13: 0 | R13: 0 | S13: 0 | T13: 0 | U13: 0 | V13: 0 | W13: 0 | X13: 0 | Y13: 0 | Z13: 0 | AA13: =SUM(P13:Z13) -> 1800 | AB13: =O13-AA13 -> 38750 | AC13: ='Basic Deta'!E19 -> 0 | AF13: =IF(C13='Basic Deta'!$G$15,"Yes","No") -> No | AG13: 0 | AH13: 0.00 | AI13: 0
B14: 5 | C14: 2022-07-01 | F14: 28660 | G14: =IF('Basic Deta'!$B$15="Regular",ROUND('Table (Income-Deduction)'!F14*34/100,0),0) -> 9744 | H14: =IF('Basic Deta'!$B$15="Regular",ROUND('Table (Income-Deduction)'!F14*0.04,0)) -> 1146 | I14: 0 | J14: 1000 | K14: 0 | M14: 0 | N14: 0 | O14: =SUM(F14:N14) -> 40550 | P14: 1800 | Q14: 0 | R14: 0 | S14: 0 | T14: 0 | U14: 0 | V14: 0 | W14: 0 | X14: 0 | Y14: 0 | Z14: 0 | AA14: =SUM(P14:Z14) -> 1800 | AB14: =O14-AA14 -> 38750 | AC14: ='Basic Deta'!F19 -> 0 | AF14: =IF(C14='Basic Deta'!$G$15,"Yes","No") -> No | AG14: 0 | AH14: 0.00 | AI14: 0 | AJ14: =IF(AF14="yes",(F14*0.04/2),0) -> 0 | AK14: =IF($AF14="Yes",ROUND(AH14*0.04,0),0) -> 0.00
B15: 6 | C15: 2022-08-01 | F15: 28660 | G15: =IF('Basic Deta'!$B$15="Regular",ROUND('Table (Income-Deduction)'!F15*34/100,0),0) -> 9744 | H15: =IF('Basic Deta'!$B$15="Regular",ROUND('Table (Income-Deduction)'!F15*0.04,0)) -> 1146 | I15: 0 | J15: =J14 -> 1000 | K15: 0 | M15: 0 | N15: 0 | O15: =SUM(F15:N15) -> 40550 | P15: 1800 | Q15: 0 | R15: 0 | S15: 0 | T15: 0 | U15: 0 | V15: 0 | W15: =W14 -> 0 | X15: 0 | Y15: 0 | Z15: 0 | AA15: =SUM(P15:Z15) -> 1800 | AB15: =O15-AA15 -> 38750 | AC15: ='Basic Deta'!G19 -> 0 | AF15: =IF(C15='Basic Deta'!$G$15,"Yes","No") -> No | AG15: 0 | AH15: 0.00 | AI15: 0 | AJ15: =IF(AF15="yes",(F15*0.04/2),0) -> 0 | AK15: =IF($AF15="Yes",ROUND(AH15*0.04,0),0) -> 0.00
B16: 7 | C16: 2022-09-01 | F16: 28660 | G16: =IF('Basic Deta'!$B$15="Regular",ROUND('Table (Income-Deduction)'!F16*34/100,0),0) -> 9744 | H16: =IF('Basic Deta'!$B$15="Regular",ROUND('Table (Income-Deduction)'!F16*0.04,0)) -> 1146 | I16: 0 | J16: 1000 | K16: 0 | M16: 0 | N16: 0 | O16: =SUM(F16:N16) -> 40550 | P16: 1800 | Q16: 0 | R16: 0 | S16: 0 | T16: 0 | U16: ='Basic Deta'!O15 -> 1000 | V16: 0 | W16: 0 | X16: 0 | Y16: 0 | Z16: 0 | AA16: =SUM(P16:Z16) -> 2800 | AB16: =O16-AA16 -> 37750 | AC16: ='Basic Deta'!H19 -> 0 | AF16: =IF(C16='Basic Deta'!$G$15,"Yes","No") -> No | AG16: 0 | AH16: 0.00 | AI16: 0 | AJ16: =IF(AF16="yes",(F16*0.04/2),0) -> 0 | AK16: =IF($AF16="Yes",ROUND(AH16*0.04,0),0) -> 0.00
B17: 8 | C17: 2022-10-01 | F17: 28660 | G17: =IF('Basic Deta'!$B$15="Regular",ROUND('Table (Income-Deduction)'!F17*38/100,0),0) -> 10891 | H17: =IF('Basic Deta'!$B$15="Regular",ROUND('Table (Income-Deduction)'!F17*0.04,0)) -> 1146 | I17: 0 | J17: 1000 | K17: 0 | M17: 0 | N17: 0 | O17: =SUM(F17:N17) -> 41697 | P17: 1800 | Q17: 0 | R17: 0 | S17: 0 | T17: 0 | U17: 0 | V17: 0 | W17: 0 | X17: 0 | Y17: 0 | Z17: 0 | AA17: =SUM(P17:Z17) -> 1800 | AB17: =O17-AA17 -> 39897 | AC17: ='Basic Deta'!I19 -> 0 | AF17: =IF(C17='Basic Deta'!$G$15,"Yes","No") -> No | AG17: 0 | AH17: 0.00 | AI17: 0
B18: 9 | C18: 2022-11-01 | F18: 28660 | G18: =IF('Basic Deta'!$B$15="Regular",ROUND('Table (Income-Deduction)'!F18*38/100,0),0) -> 10891 | H18: =IF('Basic Deta'!$B$15="Regular",ROUND('Table (Income-Deduction)'!F18*0.04,0)) -> 1146 | I18: 0 | J18: 1000 | K18: 0 | M18: 0 | N18: 0 | O18: =SUM(F18:N18) -> 41697 | P18: 1800 | Q18: 0 | R18: 0 | S18: 0 | T18: 0 | U18: 0 | V18: 0 | W18: 0 | X18: 0 | Y18: 0 | Z18: 0 | AA18: =SUM(P18:Z18) -> 1800 | AB18: =O18-AA18 -> 39897 | AC18: ='Basic Deta'!J19 -> 0 | AF18: =IF(C18='Basic Deta'!$G$15,"Yes","No") -> No | AG18: 0 | AH18: 0.00 | AI18: 0
B19: 10 | C19: 2022-12-01 | F19: 28660 | G19: =IF('Basic Deta'!$B$15="Regular",ROUND('Table (Income-Deduction)'!F19*38/100,0),0) -> 10891 | H19: =IF('Basic Deta'!$B$15="Regular",ROUND('Table (Income-Deduction)'!F19*0.04,0)) -> 1146 | I19: 0 | J19: 1000 | K19: 0 | M19: 0 | N19: 0 | O19: =SUM(F19:N19) -> 41697 | P19: 1800 | Q19: 0 | R19: 0 | S19: 0 | T19: 0 | U19: 0 | V19: 0 | W19: 0 | X19: 0 | Y19: 0 | Z19: 0 | AA19: =SUM(P19:Z19) -> 1800 | AB19: =O19-AA19 -> 39897 | AC19: ='Basic Deta'!K19 -> 0 | AF19: =IF(C19='Basic Deta'!$G$15,"Yes","No") -> Yes | AG19: 14330 | AH19: 5446.00 | AI19: 19776
B20: 11 | C20: 2023-01-01 | F20: ='Basic Deta'!K10 -> 29530 | G20: =IF('Basic Deta'!$B$15="Regular",ROUND('Table (Income-Deduction)'!F20*38/100,0),0) -> 11221 | H20: =IF('Basic Deta'!$B$15="Regular",ROUND('Table (Income-Deduction)'!F20*0.04,0)) -> 1181 | I20: 0 | J20: 1000 | K20: 0 | M20: 0 | N20: 0 | O20: =SUM(F20:N20) -> 42932 | P20: 1800 | Q20: 0 | R20: 0 | S20: 0 | T20: 0 | U20: 0 | V20: 0 | W20: 0 | X20: 0 | Y20: 0 | Z20: 0 | AA20: =SUM(P20:Z20) -> 1800 | AB20: =O20-AA20 -> 41132 | AC20: ='Basic Deta'!L19 -> 0 | AF20: =IF(C20='Basic Deta'!$G$15,"Yes","No") -> No | AG20: 0 | AH20: 0.00 | AI20: 0
B21: 12 | C21: 2023-02-01 | F21: =F20 -> 29530 | G21: =IF('Basic Deta'!$B$15="Regular",ROUND('Table (Income-Deduction)'!F21*38/100,0),0) -> 11221 | H21: =IF('Basic Deta'!$B$15="Regular",ROUND('Table (Income-Deduction)'!F21*0.04,0)) -> 1181 | I21: 0 | J21: 1000 | K21: 0 | M21: 0 | N21: 0 | O21: =SUM(F21:N21) -> 42932 | P21: 1800 | Q21: 0 | R21: 0 | S21: 0 | T21: 0 | U21: 0 | V21: 0 | W21: 0 | X21: 0 | Y21: 0 | Z21: 0 | AA21: =SUM(P21:Z21) -> 1800 | AB21: =O21-AA21 -> 41132 | AC21: ='Basic Deta'!M19 -> 0 | AF21: =IF(C21='Basic Deta'!$G$15,"Yes","No") -> No | AG21: 0 | AH21: 0.00 | AI21: 0
B22: Bonus | N22: =IF('Basic Deta'!J10>=13,0,'Basic Deta'!C15) -> 0 | O22: =SUM(F22:N22) -> 0 | P22: =ROUND(O22*25/100,0) -> 0 | AA22: =SUM(P22:Z22) -> 0 | AB22: =O22-AA22 -> 0 | AC22: 0 | AG22: =SUM(AG10:AG21) -> 14330 | AH22: =SUM(AH10:AH21) -> 5446 | AI22: 19776 | AJ22: 0 | AK22: =SUM(AK10:AK21) -> 0.00
B23: DA (Jan-22 to Mar-22) | G23: =IF('Basic Deta'!D15="yes",ROUND((G11-G10)*3,0),0) -> 2577 | O23: =SUM(F23:N23) -> 2577 | P23: 0 | AA23: =SUM(P23:Z23) -> 0 | AB23: =O23-AA23 -> 2577 | AC23: 0
B24: DA (Jul-22 to Sep-22) | G24: =IF('Basic Deta'!E15="yes",ROUND((G17-G16)*3,0),0) -> 3441 | O24: =SUM(F24:N24) -> 3441 | P24: 0 | AA24: =SUM(P24:Z24) -> 0 | AB24: =O24-AA24 -> 3441 | AC24: 0
B25: Surrender | F25: =IF('Basic Deta'!F15="Yes",AG22,0) -> 0 | G25: =IF('Basic Deta'!F15="Yes",AH22,0) -> 0 | O25: =SUM(F25:N25) -> 0 | AA25: =SUM(P25:Z25) -> 0 | AB25: =O25-AA25 -> 0 | AC25: 0
B26: Surrender Arrear | G26: =IF('Basic Deta'!F15="Yes",AK22,0) -> 0 | O26: =SUM(F26:N26) -> 0 | P26: =G26 -> 0 | AA26: =SUM(P26:Z26) -> 0 | AB26: =O26-AA26 -> 0 | AC26: 0
B27: Other-2 | O27: =SUM(F27:N27) -> 0 | AA27: =SUM(P27:Z27) -> 0 | AB27: =O27-AA27 -> 0 | AC27: 0
B28: Surr. Arear | G28: =IF('Basic Deta'!G15="Yes",AJ22,0) -> 0 | O28: =SUM(F28:N28) -> 0 | P28: =O28 -> 0 | AA28: =SUM(P28:Z28) -> 0 | AB28: =O28-AA28 -> 0 | AC28: 0
B29: Sal. Arrear-1 | O29: =SUM(F29:N29) -> 0 | AA29: =SUM(P29:Z29) -> 0 | AB29: =O29-AA29 -> 0 | AC29: 0
B30: Sal. Arrear-2 | O30: =SUM(F30:N30) -> 0 | AA30: =SUM(P30:Z30) -> 0 | AB30: =O30-AA30 -> 0 | AC30: 0
B31: Sal. Arrear-3 | O31: =SUM(F31:N31) -> 0 | AA31: =SUM(P31:Z31) -> 0 | AB31: =O31-AA31 -> 0 | AC31: 0
B32: Total | F32: =SUM(F10:F31) -> 345660 | G32: =SUM(G10:G31) -> 128482 | H32: =SUM(H10:H31) -> 13822 | I32: =SUM(I10:I31) -> 0 | J32: =SUM(J10:J31) -> 12000 | K32: =SUM(K10:K31) -> 0 | L32: =SUM(L10:L31) -> 0 | M32: =SUM(M10:M31) -> 0 | N32: =SUM(N10:N31) -> 0 | O32: =SUM(O10:O31) -> 499964 | P32: =SUM(P10:P31) -> 21600 | Q32: =SUM(Q10:Q31) -> 0 | R32: =SUM(R10:R31) -> 0 | S32: =SUM(S10:S31) -> 0 | T32: =SUM(T10:T31) -> 0 | U32: =SUM(U10:U31) -> 1000 | V32: =SUM(V10:V31) -> 0 | W32: =SUM(W10:W31) -> 0 | X32: =SUM(X10:X31) -> 0 | Y32: =SUM(Y10:Y31) -> 0 | Z32: =SUM(Z10:Z31) -> 0 | AA32: =SUM(AA10:AA31) -> 22600 | AB32: =SUM(AB10:AB31) -> 477364 | AC32: =SUM(AC10:AC31) -> 0
B33: Siganture of Employee | P33: =CONCATENATE("Signature of DPO"," ","(",'Basic Deta'!M6,")") -> Signature of DPO ()

Sheet Income Tax Cal. Report
B1: ='Exemp.(HRA+Other) & Other incom'!A1 -> District Education Officer, Education Department Primary Education of Bihar | M1: ='Table (Income-Deduction)'!B2 -> Posting Place Name:- M.S. BASUDHAR
B2: =CONCATENATE("Income Tax Calculation F.Y.",":-", 'Basic Deta'!O6) -> Income Tax Calculation F.Y.:-2022-23 | K2: =CONCATENATE("(","A.Y.",":-",AE4,")") -> (A.Y.:-2023-24) | P2: =Z16 -> Old Tax Regime | V2: Comparison of Itax calculation in Old and New Tax Regime | AE2: =YEAR('Table (Income-Deduction)'!C10) -> 2022 | AF2: =AE2+1 -> 2023
B3: 1 | C3: Taxpayer Name :- | E3: ='Table (Income-Deduction)'!F4 -> SHAHID ALI | J3: पद :- | K3: ='Basic Deta'!F10 -> Block Teacher | O3: PAN (Treasury): | P3: ='Table (Income-Deduction)'!F6 -> BFHPA0762G (BUXAR) | AE3: =YEAR('Table (Income-Deduction)'!C20) -> 2023 | AF3: =AE3+1-2000 -> 24
B4: 2 | C4: आय:वर्ष 2022-23 में कुल प्राप्त वेतन (कर योग्य सुविधाओं के मूल्य सहित) | R4: Rs. | S4: =IF(P2="old tax regime",'Table (Income-Deduction)'!O32,('Table (Income-Deduction)'!O32-'Table (Income-Deduction)'!K32)) -> 499964.00 | AE4: =CONCATENATE(AF2,"-",AF3) -> 2023-24
B5: 3 | C5: गृह किराया धारा 10 (13-A) के अंतर्गत एवं 10(14) के अंतर्गत वेतन भत्ते जो कर मुक्त है l | R5: Rs. | S5: =IF(P2="old tax regime",'Exemp.(HRA+Other) & Other incom'!K4,0) -> 13822.00
B6: 4 | C6: शेष (2-3) | R6: Rs. | S6: =S4-S5 -> 486142.00
B7: 5 | C7: (i) मनोरंजन भत्ता धारा 16 (ii) के अंतर्गत (अधिकतम 5000 रूपये) | M7: ='Exemp.(HRA+Other) & Other incom'!L13 -> 0.00
C8: (ii) व्यवसाय/पेशाकर धारा 16 (iii) के अंतर्गत (अधिकतम 5000 रूपये) | M8: ='Exemp.(HRA+Other) & Other incom'!L14 -> 1000.00 | U8: =Z8-Z12 -> 0.00 | V8: Tax Calculate by Old Tax Regime | Z8: ='OLD REGIME'!Q65 -> ₹ 0.00
C9: (iii) स्टेंडर्ड डिडक्शन (Standard Deduction)-अधिकतम 50,000 | M9: 50000.00 | R9: Rs. | S9: =IF(P2="old tax regime",M7+M8+M9,0) -> 51000.00
B10: 6 | C10: शेष (4-5) | R10: Rs. | S10: =S6-S9 -> 435142.00
B11: 7 | C11: (अ) गृह सम्पति से आय (1) स्वयं के उपयोग में शून्य | K11: (2) प्राप्त किराया | M11: ='Exemp.(HRA+Other) & Other incom'!L7 -> 0.00
C12: (ब) घटाइए | E12: किराये का 30% | H12: गृह ऋण पर ब्याज | K12: गृहकर | M12: योग 7 (ब) | U12: =Z12-Z8 -> 0.00 | V12: Tax Calculate by New Tax Regime | Z12: ='NEW REGIME'!Q65 -> ₹ 0.00
E13: =IF(P2="old tax regime",ROUND(M11*0.3,0),0) -> 0.00 | H13: =IF(P2="old tax regime",'Exemp.(HRA+Other) & Other incom'!L17,0) -> 0.00 | K13: =IF(P2="old tax regime",'Exemp.(HRA+Other) & Other incom'!L15,0) -> 0.00 | M13: =E13+H13+K13 -> 0.00
C14: शेष -/+ {7(अ) एवं योग 7(ब)} | R14: Rs. | S14: =M11-M13 -> 0.00
B15: 8 | C15: कुल शेष -/+ (6 एवं 7) | R15: Rs. | S15: =S10+S14 -> 435142.00
B16: 9 | C16: अन्य आय | D16: 9(i) | E16: ='Exemp.(HRA+Other) & Other incom'!B8 -> अन्य आय (बैंक/एफडी में जमा ब्याज/अन्य ब्याज आदि का योग | R16: Rs. | S16: ='Exemp.(HRA+Other) & Other incom'!L8 -> 0.00 | V16: Your Choice® | Z16: Old Tax Regime
D17: 9(ii) | E17: ='Exemp.(HRA+Other) & Other incom'!C9 -> (-----------------------------------------------------) | S17: ='Exemp.(HRA+Other) & Other incom'!L9 -> 0.00
D18: 9(iii) | E18: ='Exemp.(HRA+Other) & Other incom'!C10 -> (-----------------------------------------------------) | S18: ='Exemp.(HRA+Other) & Other incom'!L10 -> 0.00
C19: कुल (बिंदु संख्या -9) | S19: =S16+S17+S18 -> 0.00
B20: 10 | C20: सकल आय योग (8+9) | R20: Rs. | S20: =S15+S19 -> 435142.00
B21: 11 | C21: घटाइए कटौतियां :- धारा US 80C, 80CCC,80CCD (1)
C22: (A) अधिकतम सीमा 1.50 लाख (धारा 80 CCE) के अलावा
C23: (i) | D23: ='Table (Income-Deduction)'!P9 -> EPF/Montholy Invest in Future Plan | G23: Rs. | H23: =IF(Z16="old tax regime",'Table (Income-Deduction)'!P32,0) -> 21600.00 | I23: (x) | J23: ='Exemp.(HRA+Other) & Other incom'!B16 -> गृह ऋण किश्त मूल (जो वेतन से नहीं काटा गया) | L23: Rs. | M23: =IF(Z16="old tax regime",'Exemp.(HRA+Other) & Other incom'!L16,0) -> 0.00 | N23: (xix) | O23: ='Exemp.(HRA+Other) & Other incom'!O24 -> इक्विटी लिंक सेविंग स्कीम/Mutual Fund | P23: Rs. | Q23: =IF(Z16="old tax regime",'Exemp.(HRA+Other) & Other incom'!Q24,0) -> 0.00
C24: (ii) | D24: ='Table (Income-Deduction)'!Q9 -> GIS/Group Ins. | G24: Rs. | H24: =IF(Z16="old tax regime",'Table (Income-Deduction)'!Q32,0) -> 0.00 | I24: (xi) | J24: ='Exemp.(HRA+Other) & Other incom'!B19 -> पी.एल.आई. PLI | L24: Rs. | M24: =IF($Z$16="old tax regime",'Exemp.(HRA+Other) & Other incom'!L19,0) -> 0.00 | N24: (xx) | O24: ='Exemp.(HRA+Other) & Other incom'!O25 -> स्थिगित वार्षिकी | P24: Rs. | Q24: =IF(P2="old tax regime",'Exemp.(HRA+Other) & Other incom'!Q25,0) -> 0.00
C25: (iii) | D25: ='Table (Income-Deduction)'!R9 -> Contri. To Contributory Pension Scheme (80CCC) | G25: Rs. | H25: =IF(Z16="old tax regime",'Table (Income-Deduction)'!R32,0) -> 0.00 | I25: (xii) | J25: ='Exemp.(HRA+Other) & Other incom'!B20 -> ट्यूशन फी | L25: Rs. | M25: =IF($Z$16="old tax regime",'Exemp.(HRA+Other) & Other incom'!L20,0) -> 0.00 | N25: (xxi) | P25: Rs. | Q25: 0.00
C26: (iv) | D26: ='Table (Income-Deduction)'!S9 -> LIC | G26: Rs. | H26: =IF(Z16="old tax regime",'Table (Income-Deduction)'!S32+'Exemp.(HRA+Other) & Other incom'!L18,0) -> 0.00 | I26: (xiii) | J26: ='Exemp.(HRA+Other) & Other incom'!B21 -> UPLI/वार्षिक प्लान | L26: Rs. | M26: =IF($Z$16="old tax regime",'Exemp.(HRA+Other) & Other incom'!L21,0) -> 0.00 | N26: (xxii) | P26: Rs. | Q26: 0.00
C27: (v) | D27: ='Table (Income-Deduction)'!T9 -> GROUP L.I.C. | G27: Rs. | H27: =IF(Z16="old tax regime",'Table (Income-Deduction)'!T32,0) -> 0.00 | I27: (xv) | J27: ='Exemp.(HRA+Other) & Other incom'!B22 -> राष्ट्रीय बचत पत्र (NSC) | L27: Rs. | M27: =IF($Z$16="old tax regime",'Exemp.(HRA+Other) & Other incom'!L22,0) -> 0.00 | N27: (xxiii) | P27: Rs. | Q27: 0.00
C28: (vi) | D28: ='Table (Income-Deduction)'!U9 -> गृ.नि.अ. की किस्तों की वसूली/पेशाकर | G28: Rs. | H28: =IF('Table (Income-Deduction)'!U32='Exemp.(HRA+Other) & Other incom'!L14,0,IF(Z16="old tax regime",'Table (Income-Deduction)'!U32,0)) -> 0.00 | I28: (xiv) | J28: ='Exemp.(HRA+Other) & Other incom'!B23 -> राष्ट्रीय बचत पत्र पर अदत ब्याज | L28: Rs. | M28: =IF($Z$16="old tax regime",'Exemp.(HRA+Other) & Other incom'!L23,0) -> 0.00 | N28: (xxiv) | P28: Rs. | Q28: 0.00
C29: (vii) | D29: ='Table (Income-Deduction)'!V9 -> Other-1 | G29: Rs. | H29: =IF(Z16="old tax regime",'Table (Income-Deduction)'!V32,0) -> 0.00 | I29: (xvi) | J29: ='Exemp.(HRA+Other) & Other incom'!B24 -> लोक भविष्य निधि (PPF) | L29: Rs. | M29: =IF($Z$16="old tax regime",'Exemp.(HRA+Other) & Other incom'!L24,0) -> 0.00 | N29: (xxv) | P29: Rs. | Q29: 0.00
C30: (viii) | D30: ='Table (Income-Deduction)'!W9 -> Other-2 | G30: Rs. | H30: =IF(Z16="old tax regime",'Table (Income-Deduction)'!W32,0) -> 0.00 | I30: (xvii) | J30: ='Exemp.(HRA+Other) & Other incom'!B25 -> राष्ट्रीय बचत स्कीम (NSS) | L30: Rs. | M30: =IF($Z$16="old tax regime",'Exemp.(HRA+Other) & Other incom'!L25,0) -> 0.00 | N30: (xxvi) | P30: Rs. | Q30: 0.00
C31: (ix) | D31: ='Table (Income-Deduction)'!X9 -> Other-3 | G31: Rs. | H31: =IF(Z16="old tax regime",'Table (Income-Deduction)'!X32,0) -> 0.00 | I31: (xviii) | J31: ='Exemp.(HRA+Other) & Other incom'!B26 -> सुकन्या समृद्धि योजना | L31: Rs. | M31: =IF($Z$16="old tax regime",'Exemp.(HRA+Other) & Other incom'!L26,0) -> 0.00 | N31: (xxvii) | P31: Rs. | Q31: 0.00
C32: योग (i से xvii तक) | P32: Rs. | Q32: =SUM(H23:H31,M23:M31,Q23:Q31) -> 21600.00
C33: अधिकतम कटौती की राशि 1.50 लाख रूपये तक | R33: Rs. | S33: =IF(P2="new tax regime",0,IF(Q32>=150000,150000,Q32)) -> 21600.00
C34: (B) घटाइए - धारा 80CCD (2) नियोक्ता द्वारा नवीन पेंशन योजना में अतिरिक्त अंशदान (अधिकतम वेतन का 14%) अधिकतम | R34: Rs. | S34: 0.00
C35: (C) घटाइए - धारा 80CCD (1B) नवीन पेंशन योजना में अतिरिक्त अंशदान (अधिकतम रु.50,000) | R35: Rs. | S35: =IF(P2="old tax regime",'Exemp.(HRA+Other) & Other incom'!Q16,0) -> 0.00
C36: योग 11(A+B+C) | R36: Rs. | S36: =SUM(S33:S35) -> 21600.00
B37: 12 | C37: 1. धारा 80D - चिकित्सा बीमा प्रीमियम {स्वयं/पति/पत्नी हेतु 25,000 माता/पिता हेतु 25,000, वरिष्ठ नागरिक 50,000} | R37: Rs. | S37: =IF(P2="old tax regime",'Exemp.(HRA+Other) & Other incom'!Q17,0) -> 0.00
B38: अन्य कटौतियां | C38: 2. धारा 80DD - विकलांग आश्रितों का चिकित्सा उपचार (अधिकतम 75,000, 80% या अधिक विक्लांगता 1,25,000) | R38: Rs. | S38: =IF(P2="old tax regime",'Exemp.(HRA+Other) & Other incom'!Q18,0) -> 0.00
C39: 3. धारा 80DDB -विशिष्ठ रोगों के उपचार हेतु कटौती (सामान्य 40,000 एवं वरिष्ठ नागरिक 1 लाख) | R39: Rs. | S39: =IF(P2="old tax regime",'Exemp.(HRA+Other) & Other incom'!Q19,0) -> 0.00
C40: 4. धारा 80E - उच्च शिक्षा हेतु लिए ऋण पर ब्याज (धारा 80E) | R40: Rs. | S40: =IF(P2="old tax regime",'Exemp.(HRA+Other) & Other incom'!Q20,0) -> 0.00
C41: 5. धारा 80G -धर्मार्थ संस्थाओं को दिए दान (श्रेणी 'क' 100% एवं श्रेणी 'ख' 50%) | R41: Rs. | S41: =IF(P2="old tax regime",'Exemp.(HRA+Other) & Other incom'!Q21,0) -> 0.00 | AJ41: >250000 | AK41: >300000 | AL41: >500000 | AM41: >1000000
C42: 6. धारा 80U -स्थाई शारीरिक विक्लांगता की दशा में (अधिकतम 75,000 तथा अधिनियम 1995 के अनुसार 80% विक्लांगता 1,25,000) | R42: Rs. | S42: =IF(P2="old tax regime",'Exemp.(HRA+Other) & Other incom'!Q22,0) -> 0.00 | AJ42: =IF($S$48>1000000,1,IF($S$48>500000,2,IF($S$48>300000,3,IF($S$48>250000,4,0)))) -> 3 | AK42: =IF($S$48>1000000,1,IF($S$48>500000,2,IF($S$48>300000,3,0))) -> 3 | AL42: =IF($S$48>1000000,1,IF($S$48>500000,2,0)) -> 0 | AM42: =IF($S$48>1000000,1,0) -> 0
C43: 7. अधिनियम 1995 के अनुसार धारा 80 TTA के तहत बचत खाते की जमा राशी पर प्राप्त ब्याज में छूट 10000 (80 TTB-वरिष्ठ नागरिक अधिकतम 50,000) | R43: Rs. | S43: =IF(P2="old tax regime",MAX('Exemp.(HRA+Other) & Other incom'!Q13:'Exemp.(HRA+Other) & Other incom'!Q14),0) -> 0.00 | AI43: A | AJ43: =IF(AJ42>=3,ROUND((S48-250000)*0.05,0),IF(AJ42=0,0,12500)) -> 8177 | AK43: 0 | AL43: =IF($AL$42=2,($S$48-500000)*0.2,IF($AL$42=1,100000,0)) -> 0 | AM43: =IF($AM$42>0,($S$48-1000000)*0.3,0) -> 0
C44: 8. धारा 80 GGA -अनुमोदित वैज्ञानिक,सामाजिक,ग्रामीण विकास आदि हेतु दिया गया दान | R44: Rs. | S44: =IF(P2="old tax regime",'Exemp.(HRA+Other) & Other incom'!Q23,0) -> 0.00 | AI44: B | AJ44: 0.00 | AK44: =IF(AK42=3,ROUND((S48-300000)*0.05,0),IF(AK42=0,0,10000)) -> 5677 | AL44: =IF($AL$42=2,($S$48-500000)*0.2,IF($AL$42=1,100000,0)) -> 0 | AM44: =IF($AM$42>0,($S$48-1000000)*0.3,0) -> 0
C45: कुल योग 12 (1 से 8) | R45: Rs. | S45: =SUM(S37:S44) -> 0.00 | AI45: C | AJ45: 0.00 | AK45: 0.00 | AL45: =IF($AL$42=2,($S$48-500000)*0.2,IF($AL$42=1,100000,0)) -> 0 | AM45: =IF($AM$42>0,($S$48-1000000)*0.3,0) -> 0
B46: 13 | C46: कुल कटौती (11 एवं 12) | R46: Rs. | S46: =S36+S45 -> 21600.00
B47: 14 | C47: कर योग्य आय (10-13) | R47: Rs. | S47: =S20-S46 -> 413542.00
B48: 15 | C48: कुल आय की राशि को सम्पूर्ण करना (दस के गुणक में) धारा 288A | R48: Rs. | S48: =ROUND(S47,-1) -> 413540.00 | AG48: =IF(P2="Old tax regime","A","B") -> A | AH48: ='Basic Deta'!O10 -> A | AI48: =CONCATENATE(AG48,AH48) -> AA
B49: 16 | C49: उपरोक्त बिंदु 15 के आधार पर आयकर की गणना
C50: सामान्य करदाता | H50: वरिष्ठ नागरिक (आयु 60 से 80 वर्ष) | L50: 80 वर्ष या अधिक आयु
C51: =IF($P$2="old tax regime","2,50,000 तक","2,50,000 तक") -> 2,50,000 तक | F51: Nil | H51: =IF($P$2="old tax regime","3,00,000 तक","3,00,000 तक") -> 3,00,000 तक | K51: Nil | L51: =IF($P$2="old tax regime","----","3,00,000 तक") -> ---- | Q51: =IF($P$2="Old tax regime","----","Nil") -> ---- | R51: Rs. | S51: 0.00
C52: 2,50,001-5,00,000 | F52: 5% | H52: 3,00,001-5,00,000 | K52: 5% | L52: =IF($P$2="old tax regime","5,00,000 तक","3,00,001-5,00,000") -> 5,00,000 तक | Q52: =IF(P2="Old tax regime","Nil","5%") -> Nil | R52: Rs. | S52: =IF($AI$48="AA",AJ43,IF($AI$48="AB",AK44,IF($AI$48="BA",AJ55,IF($AI$48="BB",AK56,IF($AI$48="BC",AK57,0))))) -> 8177.00
C53: =IF($P$2="old tax regime","5,00,001-10,00,000","5,00,001-7,50,000") -> 5,00,001-10,00,000 | F53: =IF(P2="Old tax regime","20%","10%") -> 20% | H53: =IF($P$2="old tax regime","5,00,001-10,00,000","5,00,001-7,50,000") -> 5,00,001-10,00,000 | K53: =IF(P2="Old tax regime","20%","10%") -> 20% | L53: =IF($P$2="old tax regime","5,00,001-10,00,000","5,00,001-7,50,000") -> 5,00,001-10,00,000 | Q53: =IF(P2="Old tax regime","20%","10%") -> 20% | R53: Rs. | S53: =IF($AI$48="AA",AL43,IF($AI$48="AB",AL44,IF($AI$48="AC",AL45,IF($AI$48="BA",AL55,IF($AI$48="BB",AL56,IF($AI$48="BC",AL57,0)))))) -> 0.00 | AJ53: >250000 | AK53: >300000 | AL53: >500000 | AM53: >750000 | AN53: >1000000 | AO53: >1250000 | AP53: >1500000
C54: =IF($P$2="old tax regime","10,00,000 से अधिक","7,50,001-10,00,000") -> 10,00,000 से अधिक | F54: =IF(P2="Old tax regime","30%","15%") -> 30% | H54: =IF($P$2="old tax regime","10,00,000 से अधिक","7,50,001-10,00,000") -> 10,00,000 से अधिक | K54: =IF(P2="Old tax regime","30%","15%") -> 30% | L54: =IF($P$2="old tax regime","10,00,000 से अधिक","7,50,001-10,00,000") -> 10,00,000 से अधिक | Q54: =IF(P2="Old tax regime","30%","15%") -> 30% | R54: Rs. | S54: =IF($AI$48="AA",AM43,IF($AI$48="AB",AM44,IF($AI$48="AC",AM45,IF($AI$48="BA",AM55,IF($AI$48="BB",AM56,IF($AI$48="BC",AM57,0)))))) -> 0.00 | AJ54: =IF($S$48>1500000,1,IF($S$48>1250000,2,IF($S$48>1000000,3,IF($S$48>750000,4,IF($S$48>500000,5,IF($S$48>300000,6,IF($S$48>250000,7,0))))))) -> 6 | AK54: =IF($S$48>1500000,1,IF($S$48>1250000,2,IF($S$48>1000000,3,IF($S$48>750000,4,IF($S$48>500000,5,IF($S$48>300000,6,0)))))) -> 6 | AL54: =IF($S$48>1500000,1,IF($S$48>1250000,2,IF($S$48>1000000,3,IF($S$48>750000,4,IF($S$48>500000,5,0))))) -> 0 | AM54: =IF($S$48>1500000,1,IF($S$48>1250000,2,IF($S$48>1000000,3,IF($S$48>750000,4,0)))) -> 0 | AN54: =IF($S$48>1500000,1,IF($S$48>1250000,2,IF($S$48>1000000,3,0))) -> 0 | AO54: =IF($S$48>1500000,1,IF($S$48>1250000,2,0)) -> 0 | AP54: =IF($S$48>1500000,1,0) -> 0
C55: =IF($P$2="old tax regime","----","10,00,001-12,50,000") -> ---- | F55: =IF(P2="Old tax regime","----","20%") -> ---- | H55: =IF($P$2="old tax regime","----","10,00,001-12,50,000") -> ---- | K55: =IF(P2="Old tax regime","----","20%") -> ---- | L55: =IF($P$2="old tax regime","----","10,00,001-12,50,000") -> ---- | Q55: =IF(P2="Old tax regime","----","20%") -> ---- | R55: Rs. | S55: =IF($AG$48="a",0,AN55) -> 0.00 | AI55: A | AJ55: =IF(AJ54>=6,ROUND(($S$48-250000)*0.05,0),IF(AJ54=0,0,12500)) -> 8177 | AK55: 0 | AL55: =IF($AL$54=5,ROUND(($S$48-500000)*0.1,0),IF($AL$54<=4,IF($AL$54=0,0,25000))) -> 0 | AM55: =IF($AM$54=4,ROUND(($S$48-750000)*0.15,0),IF($AM$54<=3,IF($AM$54=0,0,37500))) -> 0 | AN55: =IF($AN$54=3,ROUND(($S$48-1000000)*0.2,0),IF($AN$54<=2,IF($AN$54=0,0,50000))) -> 0 | AO55: =IF($AO$54=2,ROUND(($S$48-1250000)*0.25,0),IF($AO$54<=1,IF($AO$54=0,0,62500))) -> 0 | AP55: =IF($AP$54>0,ROUND(($S$48-1500000)*0.3,0),0) -> 0
C56: =IF($P$2="old tax regime","----","12,50,001-15,00,000") -> ---- | F56: =IF(P2="Old tax regime","----","25%") -> ---- | H56: =IF($P$2="old tax regime","----","12,50,001-15,00,000") -> ---- | K56: =IF(P2="Old tax regime","----","25%") -> ---- | L56: =IF($P$2="old tax regime","----","12,50,001-15,00,000") -> ---- | Q56: =IF(P2="Old tax regime","----","25%") -> ---- | R56: Rs. | S56: =IF($AG$48="a",0,AO55) -> 0.00 | AI56: B | AJ56: 0 | AK56: =IF(AK54=6,ROUND(($S$48-300000)*0.05,0),IF(AK54=0,0,10000)) -> 5677 | AL56: =IF($AL$54=5,ROUND(($S$48-500000)*0.1,0),IF($AL$54<=4,IF($AL$54=0,0,25000))) -> 0 | AM56: =IF($AM$54=4,ROUND(($S$48-750000)*0.15,0),IF($AM$54<=3,IF($AM$54=0,0,37500))) -> 0 | AN56: =IF($AN$54=3,ROUND(($S$48-1000000)*0.2,0),IF($AN$54<=2,IF($AN$54=0,0,50000))) -> 0 | AO56: =IF($AO$54=2,ROUND(($S$48-1250000)*0.25,0),IF($AO$54<=1,IF($AO$54=0,0,62500))) -> 0 | AP56: =IF($AP$54>0,ROUND(($S$48-1500000)*0.3,0),0) -> 0
C57: =IF($P$2="old tax regime","----","15,00,000 से अधिक") -> ---- | F57: =IF(P2="Old tax regime","----","30%") -> ---- | H57: =IF($P$2="old tax regime","----","15,00,000 से अधिक") -> ---- | K57: =IF(P2="Old tax regime","----","30%") -> ---- | L57: =IF($P$2="old tax regime","----","15,00,000 से अधिक") -> ---- | Q57: =IF(P2="Old tax regime","----","30%") -> ---- | R57: Rs. | S57: =IF($AG$48="a",0,AP55) -> 0.00 | AI57: C | AJ57: 0 | AK57: =IF(AK54=6,ROUND(($S$48-300000)*0.05,0),IF(AK54=0,0,10000)) -> 5677 | AL57: =IF($AL$54=5,ROUND(($S$48-500000)*0.1,0),IF($AL$54<=4,IF($AL$54=0,0,25000))) -> 0 | AM57: =IF($AM$54=4,ROUND(($S$48-750000)*0.15,0),IF($AM$54<=3,IF($AM$54=0,0,37500))) -> 0 | AN57: =IF($AN$54=3,ROUND(($S$48-1000000)*0.2,0),IF($AN$54<=2,IF($AN$54=0,0,50000))) -> 0 | AO57: =IF($AO$54=2,ROUND(($S$48-1250000)*0.25,0),IF($AO$54<=1,IF($AO$54=0,0,62500))) -> 0 | AP57: =IF($AP$54>0,ROUND(($S$48-1500000)*0.3,0),0) -> 0
C58: (1) योग आयकर | R58: Rs. | S58: =SUM(S51:S57) -> 8177.00
C59: (2) छूट धारा 87 (A) (2.50 लाख से 5.00 लाख तक की कर योग्य आय पर आयकर की छूट अधिकतम रूपये 12,500 तक) | R59: Rs. | S59: =IF(S48<=500000,S52,0) -> 8177.00
C60: (3) शेष आयकर (1-2) | R60: Rs. | S60: =S58-S59 -> 0.00
C61: (4) शिक्षा उपकर 2% एवं उच्च शिक्षा के लिए अधिभार 2% (योग 4%) | R61: Rs. | S61: =ROUND(S60*0.04,0) -> 0.00
C62: कुल आयकर (3+4) | R62: Rs. | S62: =S60+S61 -> 0.00
B63: 17 | C63: घटाइए :- धारा 89 के अंतर्गत राहत Rule 21A(2) | R63: Rs. | S63: ='Exemp.(HRA+Other) & Other incom'!Q26 -> 0.00
B64: 18 | C64: कुल शेष आयकर | R64: Rs. | S64: =S62-S63 -> 0.00
C65: कुल शेष आयकर की राशि (दस के गुणक में) | R65: Rs. | S65: =ROUND(S64,-1) -> 0.00
B66: 19 | C66: आयकर कटौती का विवरण | D66: Itax deducted Till Jun-2022 (First Quarter) | F66: Itax deducted July-22 to Sep.-22 (Second Quarter) | I66: Itax deducted Oct-22 to Dec.-22 (Third Quarter) | J66: Itax Deducted/ Dedctable by Dec.22 Salary | K66: Itax Deducted/ Dedctable by Jan-23 Salary | M66: Itax Deducted/ Dedctable by Feb-23 Salary | O66: Itax Deducted addition to Salary | P66: Itax submitted by other means | R66: बिंदु 19 का योग
D67: =SUM('Table (Income-Deduction)'!AC10:AC12) -> 0 | F67: =SUM('Table (Income-Deduction)'!AC13:AC15) -> 0 | I67: =SUM('Table (Income-Deduction)'!AC16:AC18) -> 0 | J67: ='Table (Income-Deduction)'!AC19 -> 0 | K67: ='Table (Income-Deduction)'!AC20 -> 0 | M67: ='Table (Income-Deduction)'!AC21 -> 0 | O67: =SUM('Table (Income-Deduction)'!AC22:AC31) -> 0 | P67: ='Basic Deta'!N19 -> 0 | R67: Rs. | S67: =SUM(D67:P67) -> 0.00
D68: Income Tax Refundable/Payble | L68: =IF(S67>S65,"(Refundable)","(Payble)") -> (Payble) | R68: Rs. | S68: =S67-S65 -> 0.00
B69: ='Table (Income-Deduction)'!B33 -> Siganture of Employee | K69: ='Table (Income-Deduction)'!P33 -> Signature of DPO ()

Sheet Form-16
B2: FORM NO.16 | H2: T.D.S.
V3: (i) | W3: =AC3 -> 1 | X3: =VLOOKUP($V3,'Income Tax Cal. Report'!$C$23:$H$31,2,0) -> EPF/Montholy Invest in Future Plan | Y3: =VLOOKUP($V3,'Income Tax Cal. Report'!$C$23:$H$31,6,0) -> 21600 | AA3: =IF(Y3>0,1,0) -> 1 | AB3: =AA3 -> 1 | AC3: =IF(AB3>0,1,0) -> 1
B4: [See rule 31 (1) (a)] | H4: Part A | V4: (ii) | W4: =AC4 -> 0 | X4: =VLOOKUP($V4,'Income Tax Cal. Report'!$C$23:$H$31,2,0) -> GIS/Group Ins. | Y4: =VLOOKUP($V4,'Income Tax Cal. Report'!$C$23:$H$31,6,0) -> 0 | AA4: =IF(Y4>0,1,0) -> 0 | AB4: =AA4+AB3 -> 1 | AC4: =IF(AB4>AB3,1+AB3,0) -> 0
H5: Certificate under section 203 of the Income Tax Act, 1961 for tax deducted at source from income chargeable under the head “ Salaries “ | V5: (iii) | W5: 0 | X5: =VLOOKUP($V5,'Income Tax Cal. Report'!$C$23:$H$31,2,0) -> Contri. To Contributory Pension Scheme (80CCC) | Y5: =VLOOKUP($V5,'Income Tax Cal. Report'!$C$23:$H$31,6,0) -> 0 | AA5: 0 | AB5: =AA5+AB4 -> 1 | AC5: =IF(AB5>AB4,1+AB4,0) -> 0
V6: (iv) | W6: 0 | X6: =VLOOKUP($V6,'Income Tax Cal. Report'!$C$23:$H$31,2,0) -> LIC | Y6: =VLOOKUP($V6,'Income Tax Cal. Report'!$C$23:$H$31,6,0) -> 0 | AA6: 0 | AB6: =AA6+AB5 -> 1 | AC6: 0
B7: =CONCATENATE("Calculation as per"," ",'Income Tax Cal. Report'!Z16) -> Calculation as per Old Tax Regime | V7: (v) | W7: 0 | X7: =VLOOKUP($V7,'Income Tax Cal. Report'!$C$23:$H$31,2,0) -> GROUP L.I.C. | Y7: =VLOOKUP($V7,'Income Tax Cal. Report'!$C$23:$H$31,6,0) -> 0 | AA7: 0 | AB7: =AA7+AB6 -> 1 | AC7: =IF(AB7>AB6,1+AB6,0) -> 0
J8: Tax Payer Age Group:- | M8: =IF('Basic Deta'!O10="A","Under 60 Yrs.",IF('Basic Deta'!O10="B","Between 60&80 Yrs.","Above 80 Yrs.")) -> Under 60 Yrs. | V8: (vi) | W8: 0 | X8: =VLOOKUP($V8,'Income Tax Cal. Report'!$C$23:$H$31,2,0) -> गृ.नि.अ. की किस्तों की वसूली/पेशाकर | Y8: =VLOOKUP($V8,'Income Tax Cal. Report'!$C$23:$H$31,6,0) -> 0 | AA8: 0 | AB8: =AA8+AB7 -> 1 | AC8: =IF(AB8>AB7,1+AB7,0) -> 0
B9: Name and address of the employer | H9: Name and Designation of the employee | V9: (vii) | W9: =AC9 -> 0 | X9: =VLOOKUP($V9,'Income Tax Cal. Report'!$C$23:$H$31,2,0) -> Other-1 | Y9: =VLOOKUP($V9,'Income Tax Cal. Report'!$C$23:$H$31,6,0) -> 0 | AA9: 0 | AB9: =AA9+AB7 -> 1 | AC9: =IF(AB9>AB7,1+AB7,0) -> 0
B10: =CONCATENATE('Exemp.(HRA+Other) & Other incom'!A1) -> District Education Officer, Education Department Primary Education of Bihar | H10: =CONCATENATE('Exemp.(HRA+Other) & Other incom'!A4," ","(",'Exemp.(HRA+Other) & Other incom'!C4,")") -> SHAHID ALI (Block Teacher) | V10: (viii) | W10: 0 | X10: =VLOOKUP($V10,'Income Tax Cal. Report'!$C$23:$H$31,2,0) -> Other-2 | Y10: =VLOOKUP($V10,'Income Tax Cal. Report'!$C$23:$H$31,6,0) -> 0 | AA10: 0 | AB10: =AA10+AB9 -> 1 | AC10: =IF(AB10>AB9,1+AB9,0) -> 0
V11: (ix) | W11: 0 | X11: =VLOOKUP($V11,'Income Tax Cal. Report'!$C$23:$H$31,2,0) -> Other-3 | Y11: =VLOOKUP($V11,'Income Tax Cal. Report'!$C$23:$H$31,6,0) -> 0 | AA11: 0 | AB11: =AA11+AB10 -> 1 | AC11: =IF(AB11>AB10,1+AB10,0) -> 0
H12: =CONCATENATE('Basic Deta'!G9,":-",'Basic Deta'!G10) -> Posting Place Name:-M.S. BASUDHAR | V12: (x) | W12: 0 | X12: =VLOOKUP($V12,'Income Tax Cal. Report'!$I$23:$M$31,2,0) -> गृह ऋण किश्त मूल (जो वेतन से नहीं काटा गया) | Y12: =VLOOKUP($V12,'Income Tax Cal. Report'!$I$23:$M$31,5,0) -> 0 | AA12: 0 | AB12: =AA12+AB11 -> 1 | AC12: =IF(AB12>AB11,1+AB11,0) -> 0
V13: (xi) | W13: 0 | X13: =VLOOKUP($V13,'Income Tax Cal. Report'!$I$23:$M$31,2,0) -> पी.एल.आई. PLI | Y13: =VLOOKUP($V13,'Income Tax Cal. Report'!$I$23:$M$31,5,0) -> 0 | AA13: 0 | AB13: 1 | AC13: 0
B14: PAN of the Deducter | E14: TAN of the Deducter | H14: PAN of the Employee | R14: =I25 -> 0 | V14: (xii) | W14: 0 | X14: =VLOOKUP($V14,'Income Tax Cal. Report'!$I$23:$M$31,2,0) -> ट्यूशन फी | Y14: =VLOOKUP($V14,'Income Tax Cal. Report'!$I$23:$M$31,5,0) -> 0 | AA14: 0 | AB14: 1 | AC14: 0
E15: ='Basic Deta'!I6 -> 0 | H15: ='Basic Deta'!L10 -> BFHPA0762G | R15: =C43 -> 0 | V15: (xiii) | W15: 0 | X15: =VLOOKUP($V15,'Income Tax Cal. Report'!$I$23:$M$31,2,0) -> UPLI/वार्षिक प्लान | Y15: =VLOOKUP($V15,'Income Tax Cal. Report'!$I$23:$M$31,5,0) -> 0 | AA15: 0 | AB15: 1 | AC15: 0
B16: TDS Circle where annual | H16: PERIOD | K16: Assessment Year | R16: =C54 -> 0 | V16: (xv) | W16: 0 | X16: =VLOOKUP($V16,'Income Tax Cal. Report'!$I$23:$M$31,2,0) -> राष्ट्रीय बचत पत्र (NSC) | Y16: =VLOOKUP($V16,'Income Tax Cal. Report'!$I$23:$M$31,5,0) -> 0 | AA16: 0 | AB16: 1 | AC16: 0
B17: return / statement under | H17: FROM | J17: TO | K17: ='Income Tax Cal. Report'!AE4 -> 2023-24 | R17: =SUM(R14:R16) -> 0 | V17: (xiv) | W17: 0 | X17: =VLOOKUP($V17,'Income Tax Cal. Report'!$I$23:$M$31,2,0) -> राष्ट्रीय बचत पत्र पर अदत ब्याज | Y17: =VLOOKUP($V17,'Income Tax Cal. Report'!$I$23:$M$31,5,0) -> 0 | AA17: 0 | AB17: 1 | AC17: 0
B18: section 206 is to be filed | H18: ='Table (Income-Deduction)'!C11 -> 2022-04-01 | J18: =EOMONTH('Table (Income-Deduction)'!C21,0)+31 -> 2023-03-31 | V18: (xvi) | W18: 0 | X18: =VLOOKUP($V18,'Income Tax Cal. Report'!$I$23:$M$31,2,0) -> लोक भविष्य निधि (PPF) | Y18: =VLOOKUP($V18,'Income Tax Cal. Report'!$I$23:$M$31,5,0) -> 0 | AA18: 0 | AB18: 1 | AC18: 0
B19: Smmary of amount Paid/credited and tax Deducted at source thereon in respect of the Employee | V19: (xvii) | W19: 0 | X19: =VLOOKUP($V19,'Income Tax Cal. Report'!$I$23:$M$31,2,0) -> राष्ट्रीय बचत स्कीम (NSS) | Y19: =VLOOKUP($V19,'Income Tax Cal. Report'!$I$23:$M$31,5,0) -> 0 | AA19: 0 | AB19: 1 | AC19: 0
B20: Quarter(s) | D20: Receipt Numbersof Original Quaterly Statements of TDS Under Sub-Section (3) of Section 200 | G20: Amount Paid cridited | I20: Amount of Tax Deducted (Rs) | L20: Amount of Tax Deposited / Remitted (Rs) | V20: (xviii) | W20: 0 | X20: =VLOOKUP($V20,'Income Tax Cal. Report'!$I$23:$M$31,2,0) -> सुकन्या समृद्धि योजना | Y20: =VLOOKUP($V20,'Income Tax Cal. Report'!$I$23:$M$31,5,0) -> 0 | AA20: 0 | AB20: 1 | AC20: 0
B21: Quarter 1 | I21: ='Income Tax Cal. Report'!D67 -> 0 | L21: =I21 -> 0 | V21: (xix) | W21: 0 | X21: =VLOOKUP($V21,'Income Tax Cal. Report'!$N$23:$Q$31,2,0) -> इक्विटी लिंक सेविंग स्कीम/Mutual Fund | Y21: =VLOOKUP($V21,'Income Tax Cal. Report'!$N$23:$Q$31,4,0) -> 0
B22: Quarter 2 | I22: ='Income Tax Cal. Report'!F67 -> 0 | L22: =I22 -> 0 | V22: (xx) | W22: 0 | X22: =VLOOKUP($V22,'Income Tax Cal. Report'!$N$23:$Q$31,2,0) -> स्थिगित वार्षिकी | Y22: =VLOOKUP($V22,'Income Tax Cal. Report'!$N$23:$Q$31,4,0) -> 0
B23: Quarter 3 | I23: ='Income Tax Cal. Report'!I67 -> 0 | L23: =I23 -> 0 | V23: (xxi) | W23: 0 | X23: =VLOOKUP($V23,'Income Tax Cal. Report'!$N$23:$Q$31,2,0) -> 0 | Y23: =VLOOKUP($V23,'Income Tax Cal. Report'!$N$23:$Q$31,4,0) -> 0
B24: Quarter 4 | I24: ='Income Tax Cal. Report'!J67+'Income Tax Cal. Report'!K67+'Income Tax Cal. Report'!L67+'Income Tax Cal. Report'!M67 -> 0 | L24: =I24 -> 0 | V24: (xxii) | W24: 0 | X24: =VLOOKUP($V24,'Income Tax Cal. Report'!$N$23:$Q$31,2,0) -> 0 | Y24: =VLOOKUP($V24,'Income Tax Cal. Report'!$N$23:$Q$31,4,0) -> 0
B25: Total | G25: =SUM(G21:H24) -> 0 | I25: =SUM(I21:K24) -> 0 | L25: =SUM(L21:M24) -> 0 | V25: (xxiii) | W25: 0 | X25: =VLOOKUP($V25,'Income Tax Cal. Report'!$N$23:$Q$31,2,0) -> 0 | Y25: =VLOOKUP($V25,'Income Tax Cal. Report'!$N$23:$Q$31,4,0) -> 0
B26: I.DETAILS TAX DEDUCTED AND DEPOSITED INTO CENTRAL GOVERNMENT ACCOUNT THROUGH BOOK ADJUSTMENT | V26: (xxiv) | W26: 0 | X26: =VLOOKUP($V26,'Income Tax Cal. Report'!$N$23:$Q$31,2,0) -> 0 | Y26: =VLOOKUP($V26,'Income Tax Cal. Report'!$N$23:$Q$31,4,0) -> 0
B27: S.No | C27: Tax Deposited In Respect | F27: Book Identification Number (BIN) | V27: (xxv) | W27: 0 | X27: =VLOOKUP($V27,'Income Tax Cal. Report'!$N$23:$Q$31,2,0) -> 0 | Y27: =VLOOKUP($V27,'Income Tax Cal. Report'!$N$23:$Q$31,4,0) -> 0
C28: of the deducter | F28: Receipt Numbers of | H28: DDO Serial No in | J28: Date Of Transfer | L28: Status of Maching | V28: (xxvi) | W28: 0 | X28: =VLOOKUP($V28,'Income Tax Cal. Report'!$N$23:$Q$31,2,0) -> 0 | Y28: =VLOOKUP($V28,'Income Tax Cal. Report'!$N$23:$Q$31,4,0) -> 0
D29: (Rs) | F29: Form No.24G | H29: Form No.24G | J29: Form No.24G | L29: with Form.No 24G | V29: (xxvii) | W29: 0 | X29: =VLOOKUP($V29,'Income Tax Cal. Report'!$N$23:$Q$31,2,0) -> 0 | Y29: =VLOOKUP($V29,'Income Tax Cal. Report'!$N$23:$Q$31,4,0) -> 0
J30: (dd/mm/yyyy)
B31: 1
B32: 2
B33: 3
B34: 4
B35: 5
B36: 6
B37: 7
B38: 8
B39: 9
B40: 10
B41: 11
B42: 12
B43: Total (Rs) | C43: =SUM(C31:E42) -> 0
B45: II.DETAILS TAX DEDUCTED AND DEPOSITED INTO CENTRAL GOVERNMENT ACCOUNT THROUGH BOOK CHALLAN
B46: S.No | C46: Tax Deposited In Respect | F46: Book Identification Number (CIN)
C47: of the deducter | F47: BRS Code of the | H47: Date on Which | J47: Challana Serial | L47: Status of Maching
D48: (Rs) | F48: Bank Branch | H48: Tax Deposited | J48: Number | L48: with Form.No 24G
H49: (dd/mm/yyyy)
B50: 1 | C50: ='Exemp.(HRA+Other) & Other incom'!Q7 -> 0 | F50: ='Exemp.(HRA+Other) & Other incom'!P7 -> 0 | H50: ='Exemp.(HRA+Other) & Other incom'!N7 -> 00:00:00 | J50: ='Exemp.(HRA+Other) & Other incom'!O7 -> 0 | L50: =IF(C50>0,"Matched",0) -> 0
B51: 2 | C51: ='Exemp.(HRA+Other) & Other incom'!Q8 -> 0 | F51: ='Exemp.(HRA+Other) & Other incom'!P8 -> 0 | H51: ='Exemp.(HRA+Other) & Other incom'!N8 -> 00:00:00 | J51: ='Exemp.(HRA+Other) & Other incom'!O8 -> 0 | L51: =IF(C51>0,"Matched",0) -> 0
B52: 3 | C52: ='Exemp.(HRA+Other) & Other incom'!Q9 -> 0 | F52: ='Exemp.(HRA+Other) & Other incom'!P9 -> 0 | H52: ='Exemp.(HRA+Other) & Other incom'!N9 -> 00:00:00 | J52: ='Exemp.(HRA+Other) & Other incom'!O9 -> 0 | L52: 0
B53: 4 | C53: ='Exemp.(HRA+Other) & Other incom'!Q10 -> 0 | F53: ='Exemp.(HRA+Other) & Other incom'!P10 -> 0 | H53: ='Exemp.(HRA+Other) & Other incom'!N10 -> 00:00:00 | J53: ='Exemp.(HRA+Other) & Other incom'!O10 -> 0 | L53: 0
B54: Total (Rs) | C54: =SUM(C50:E53) -> 0
B55: Verification
B56: I, | C56: ='Basic Deta'!M5 -> SHARIQUE ASHRAF | F56: Son/Doughter of | H56: ='Basic Deta'!M6 -> 0 | K56: Working In the Capacity Of
B57: DPO (Estt.) | E57: (Designation) do hereby certify that a sum of Rs. | J57: ='Income Tax Cal. Report'!S67 -> 0 | K57: (in words)
G58: has beeen deducted at source and paid to the credit of the Central Government.
B59: I further certify that the information given above is true and correct based on the book of accounts, documents and TDS Statements, TDS Deposited and other available records.
B61: Notes :
B62: 1. Government deductors to fill information in item I if tax is paid without production of an income-tax challan and in item II if tax .
B63: is paid accompanied by an income-tax challan
B64: 2. Non-Government deductors to fill information in item II.
B65: 3. The deductor shall furnish the address of the Commissioner of Income-tax (TDS) having jurisdiction as regards TDS
B66: statements of the assessee.
B67: 4. If an assessee is employed under one employer only during the year, certificate in Form No. 16 issued for the quarter ending on
B68: 31st March of the financial year shall contain the details of tax deducted and deposited for all the quarters of the financial year.
B69: 5. If an assessee is employed under more than one employer during the year, each of the employers shall issue Part
B70: A of the certificate in Form No. 16 pertaining to the period for which such assessee was employed with each of the employers.
B71: Part B (Annexure) of the certificate in Form No.16 may be issued by each of the employers or the last employer at the
B72: option of the assessee.
B73: 6. In items I and II, in column for tax deposited in respect of deductee, furnish total amount of TDS and education cess."
B75: Part B
B76: DETAILS OF SALARY PAID AND ANY OTHER INCOME AND TAX DEDUCTED
B77: 1. Gross Salary *
C78: ( a ) Salary as per provisions contained in section 17 (1) | J78: ='Income Tax Cal. Report'!S4 -> ₹ 499,964.00
C79: ( b ) Value of perquisites under section 17 (2)
C80: (as per Form No. 12 BA, wherever applicable)
C81: ( c ) Profits in lieu of Salary under section 17 (3)
C82: (as per Form No. 12 BA, wherever applicable)
C83: ( d ) Total | K83: =+J82+J80+J78 -> ₹ 499,964.00
B85: 2. Less : Allowance to the extent exempt under section 10
B86: a) HRA {U/s 10 (13-A)} | J86: ='Income Tax Cal. Report'!S5 -> ₹ 13,822.00
B87: b)
B88: 3. Balance (1-2) | K88: =+K83-J85-J86-J87 -> ₹ 486,142.00
B90: 4. Deductions : | R90: =IF('Income Tax Cal. Report'!Z16="New tax regime",0,'Income Tax Cal. Report'!S9) -> 51000.00
C91: (a) Standard deduction | G91: Rs. | H91: =R90-R91 -> ₹ 50,000.00 | R91: =IF('Income Tax Cal. Report'!Z16="New tax regime",0,'Income Tax Cal. Report'!M7+'Income Tax Cal. Report'!M8) -> 1000.00
C92: (b) Entertainment allowance | G92: Rs. | H92: =R91 -> ₹ 1,000.00
C93: (c) Tax on Employment | G93: Rs. | H93: 0
B94: 5. Aggregate of 4 (a to c) | J94: =+H91+H92+H93 -> ₹ 51,000.00
B96: 6. Income chargeable under the Head ‘Salaries’(3-5) | M96: =IF(AND((K88>50000)),(K88-J94),0) -> ₹ 435,142.00
B98: 7. Add. : Any other income reported by the employee | M98: ='Income Tax Cal. Report'!M11 -> ₹ 0.00
C99: Less:- Loss From House Properties | M99: ='Income Tax Cal. Report'!M13 -> ₹ 0.00
B101: 8. Gross total income (6+7) | M101: =+M96+M98-M99 -> ₹ 435,142.00
B103: 9. Deductions Under Chapter VIA
B104: A. | C104: Sections 80C,80CC and 80CCD | H104: Gross Amount | J104: Qualifying Amt. | L104: Deductible Amt. | M104: Deductible Amt
B105: (a) | C105: Sections 80C,80CC and 80CCD(1)
B106: 1 | C106: (i) | D106: =IFERROR(VLOOKUP($B106,$W$3:$Y$29,2,0),"--") -> EPF/Montholy Invest in Future Plan | G106: Rs. | H106: =IFERROR(VLOOKUP($B106,$W$3:$Y$29,3,0),"--") -> ₹ 21,600.00 | J106: =+H106 -> ₹ 21,600.00 | L106: =J106 -> ₹ 21,600.00
B107: 2 | C107: (ii) | D107: =IFERROR(VLOOKUP(B107,$W$3:$Y$29,2,0),"--") -> -- | G107: Rs. | H107: =IFERROR(VLOOKUP($B107,$W$3:$Y$29,3,0),"--") -> -- | J107: -- | L107: --
B108: 3 | C108: (iii) | D108: -- | G108: Rs. | H108: -- | J108: -- | L108: --
B109: 4 | C109: (iv) | D109: -- | G109: Rs. | H109: -- | J109: -- | L109: --
B110: 5 | C110: (v) | D110: -- | G110: Rs. | H110: -- | J110: -- | L110: --
B111: 6 | C111: (vi) | D111: -- | G111: Rs. | H111: -- | J111: -- | L111: --
B112: 7 | C112: (vii) | D112: -- | G112: Rs. | H112: -- | J112: =+H112 -> -- | L112: =J112 -> --
B113: 8 | C113: (viii) | D113: -- | G113: Rs. | H113: -- | J113: -- | L113: --
B114: 9 | C114: (ix) | D114: -- | G114: Rs. | H114: -- | J114: -- | L114: --
B115: 10 | C115: (xi) | D115: -- | G115: Rs. | H115: -- | J115: -- | L115: --
B116: Aggregate amount deductible under the three sections i.e.80C, 80CCC and 80CCD (Max. 1.50 Lac) | M116: =IF(SUM(L106:M111)>150000,150000,SUM(L106:M111)) -> ₹ 21,600.00
B118: (b) | C118: Section 80CCD (2) | G118: Rs. | H118: ='Income Tax Cal. Report'!S34 -> ₹ 0.00 | J118: =+H118 -> ₹ 0.00 | L118: =J118 -> ₹ 0.00
B119: (c) | C119: Section 80CCD (1B) | G119: Rs. | H119: ='Income Tax Cal. Report'!S35 -> ₹ 0.00 | J119: =+H119 -> ₹ 0.00 | L119: =IF(J119>50000,50000,J119) -> ₹ 0.00
B121: B. | C121: Other Sections ( e.g. 80E, 80G, 80TTA etc) Under Chapter VIA
H122: Gross Amount | J122: Qualifying Amt. | L122: Deductible Amt. | M122: Deductible Amt
B123: 1 | C123: (i) | D123: =IFERROR(VLOOKUP(B106,$Q$157:$X$164,8,0),"--") -> -- | G123: Rs. | H123: =IFERROR(VLOOKUP(B106,$Q$157:$X$164,3,0),"0") -> 0 | J123: =+H123 -> 0 | L123: =J123 -> 0
B124: 2 | C124: (ii) | D124: =IFERROR(VLOOKUP(B107,$Q$157:$X$164,8,0),"--") -> -- | G124: Rs. | H124: =IFERROR(VLOOKUP(B107,$Q$157:$X$164,3,0),"0") -> 0 | J124: 0 | L124: 0
B125: 3 | C125: (iii) | D125: -- | G125: Rs. | H125: 0 | J125: 0 | L125: 0
B126: 4 | C126: (iv) | D126: -- | G126: Rs. | H126: 0 | J126: 0 | L126: 0
B127: 5 | C127: (v) | D127: -- | G127: Rs. | H127: 0 | J127: 0 | L127: 0
B128: 6 | C128: (vi) | D128: -- | G128: Rs. | H128: 0 | J128: 0 | L128: 0
B129: Aggregate amount deductible under the three sections i.e.80E, 80G, 80TTA | M129: =IF(SUM(L123:M128)>150000,150000,SUM(L123:M128)) -> ₹ 0.00
B131: 10. Aggregate of deductible amount under chapter VI-A (A+B) | L131: =M116+L118+L119+M129 -> ₹ 21,600.00 | M131: =SUM(K105:K116) -> ₹ 0.00
B133: 11. Total Taxable Income (8-10 ) Nearest Decimal Figure (U/s 288A) | M133: ='Income Tax Cal. Report'!S48 -> ₹ 413,540.00
B135: 12. Tax on total Income | M135: ='Income Tax Cal. Report'!S58 -> ₹ 8,177.00
B136: 13. Rebate U/S 87a | M136: ='Income Tax Cal. Report'!S59 -> ₹ 8,177.00 | P136: (i) | Q136: =W136 -> 1 | R136: =VLOOKUP(P136,'Income Tax Cal. Report'!C23:I31,2,0) -> EPF/Montholy Invest in Future Plan | S136: =VLOOKUP(P136,'Income Tax Cal. Report'!C23:I31,7,0) -> (x) | U136: =IF(S136>0,1,0) -> 1 | V136: =U136 -> 1 | W136: =IF(V136>V122,1,0) -> 1
B137: 14. Tax Payable on total income (12-13) | M137: =IF((M135-M136)>0,(M135-M136),0) -> ₹ 0.00 | P137: (ii) | Q137: =W137 -> 2 | R137: =VLOOKUP(P137,'Income Tax Cal. Report'!C24:I32,2,0) -> GIS/Group Ins. | S137: =VLOOKUP(P137,'Income Tax Cal. Report'!C24:I32,7,0) -> (xi) | U137: =IF(S137>0,1,0) -> 1 | V137: =U137+V136 -> 2 | W137: =IF(V137>V136,1+V136,0) -> 2
B138: 15.Education & Health Cess 4% | M138: =M137*4% -> ₹ 0.00 | P138: (iii) | Q138: 3 | R138: =VLOOKUP(P138,'Income Tax Cal. Report'!C25:I33,2,0) -> Contri. To Contributory Pension Scheme (80CCC) | S138: =VLOOKUP(P138,'Income Tax Cal. Report'!C25:I33,7,0) -> (xii) | U138: 1 | V138: =U138+V137 -> 3 | W138: =IF(V138>V137,1+V137,0) -> 3
B139: 16. Tax payable (14+15) | M139: =M137+M138 -> ₹ 0.00 | P139: (iv) | Q139: 4 | R139: =VLOOKUP(P139,'Income Tax Cal. Report'!C26:I34,2,0) -> LIC | S139: =VLOOKUP(P139,'Income Tax Cal. Report'!C26:I34,7,0) -> (xiii) | U139: 1 | V139: =U139+V138 -> 4 | W139: 4
B140: 17. Relife Under Section 89 (attach details) | M140: ='Income Tax Cal. Report'!S63 -> ₹ 0.00 | P140: (v) | Q140: 5 | R140: =VLOOKUP(P140,'Income Tax Cal. Report'!C27:I35,2,0) -> GROUP L.I.C. | S140: =VLOOKUP(P140,'Income Tax Cal. Report'!C27:I35,7,0) -> (xv) | U140: 1 | V140: =U140+V139 -> 5 | W140: =IF(V140>V139,1+V139,0) -> 5
B141: 18. Tax payable (16-17) | M141: =M139-M140 -> ₹ 0.00 | P141: (vi) | Q141: 6 | R141: =VLOOKUP(P141,'Income Tax Cal. Report'!C28:I36,2,0) -> गृ.नि.अ. की किस्तों की वसूली/पेशाकर | S141: =VLOOKUP(P141,'Income Tax Cal. Report'!C28:I36,7,0) -> (xiv) | U141: 1 | V141: =U141+V140 -> 6 | W141: 6
J142: Nearest Decimal Figure | M142: =ROUND(M141,-1) -> ₹ 0.00
B143: 19.Tax Deducted at source U/S 192 | M143: ='Income Tax Cal. Report'!S67 -> ₹ 0.00 | P143: (vii) | Q143: 7 | R143: =VLOOKUP(P143,'Income Tax Cal. Report'!C29:I37,2,0) -> Other-1 | S143: =VLOOKUP(P143,'Income Tax Cal. Report'!C29:I37,7,0) -> (xvi) | U143: 1 | V143: =U143+V141 -> 7 | W143: =IF(V143>V141,1+V141,0) -> 7
B144: 20. Tax payable / refundable (17-18) | J144: =IF(M144>0,"(Payble)","Refundable") -> Refundable | M144: =M142-M143 -> ₹ 0.00 | P144: (viii) | Q144: 8 | R144: =VLOOKUP(P144,'Income Tax Cal. Report'!C30:I38,2,0) -> Other-2 | S144: =VLOOKUP(P144,'Income Tax Cal. Report'!C30:I38,7,0) -> (xvii) | U144: 1 | V144: =U144+V143 -> 8 | W144: 8
B145: Verification | P145: (ix) | Q145: 9 | R145: =VLOOKUP(P145,'Income Tax Cal. Report'!C31:I39,2,0) -> Other-3 | S145: =VLOOKUP(P145,'Income Tax Cal. Report'!C31:I39,7,0) -> (xviii) | U145: 1 | V145: =U145+V144 -> 9 | W145: =IF(V145>V144,1+V144,0) -> 9
B146: I, | C146: =C56 -> SHARIQUE ASHRAF | F146: Son/Doughter of | H146: =H56 -> 0 | K146: Working In the Capacity Of | P146: (x) | R146: =VLOOKUP(P146,'Income Tax Cal. Report'!J23:Q31,2,0) ->  | S146: =VLOOKUP(P146,'Income Tax Cal. Report'!J23:Q31,6,0) -> 
B147: =B57 -> DPO (Estt.) | E147: (Designation) do hereby certify that the information given above is true correct based on the | P147: (xi) | R147: =VLOOKUP(P147,'Income Tax Cal. Report'!J24:Q32,2,0) ->  | S147: =VLOOKUP(P147,'Income Tax Cal. Report'!J24:Q32,6,0) -> 
B148: book of accounts, documents and TDS Statements, TDS Deposited and other available records. | P148: (xii) | R148: =VLOOKUP(P148,'Income Tax Cal. Report'!J25:Q33,2,0) ->  | S148: =VLOOKUP(P148,'Income Tax Cal. Report'!J25:Q33,6,0) -> 
P149: (xiii) | R149: =VLOOKUP(P149,'Income Tax Cal. Report'!J26:Q34,2,0) ->  | S149: =VLOOKUP(P149,'Income Tax Cal. Report'!J26:Q34,6,0) -> 
P150: (xv) | R150: =VLOOKUP(P150,'Income Tax Cal. Report'!J27:Q35,2,0) ->  | S150: =VLOOKUP(P150,'Income Tax Cal. Report'!J27:Q35,6,0) -> 
P151: (xiv) | R151: =VLOOKUP(P151,'Income Tax Cal. Report'!J28:Q36,2,0) ->  | S151: =VLOOKUP(P151,'Income Tax Cal. Report'!J28:Q36,6,0) -> 
P152: (xvi) | R152: =VLOOKUP(P152,'Income Tax Cal. Report'!J29:Q37,2,0) ->  | S152: =VLOOKUP(P152,'Income Tax Cal. Report'!J29:Q37,6,0) -> 
G153: Signature & Seal of the person responsible | P153: (xvii) | R153: =VLOOKUP(P153,'Income Tax Cal. Report'!J30:Q38,2,0) ->  | S153: =VLOOKUP(P153,'Income Tax Cal. Report'!J30:Q38,6,0) -> 
G154: for deduction of tax | P154: (xviii) | R154: =VLOOKUP(P154,'Income Tax Cal. Report'!J31:Q39,2,0) ->  | S154: =VLOOKUP(P154,'Income Tax Cal. Report'!J31:Q39,6,0) -> 
B155: Place: | C155: ='Basic Deta'!E5 -> District Education Officer, Education Department Primary Education of Bihar | G155: ________________________________ | H155: Full Name : | J155: =C146 -> SHARIQUE ASHRAF
B156: Date: | C156: =TODAY() -> 2023-02-19 | H156: Designation : | J156: =B147 -> DPO (Estt.)
Q157: =W157 -> 0 | R157: ='Income Tax Cal. Report'!C37 -> 1. धारा 80D - चिकित्सा बीमा प्रीमियम {स्वयं/पति/पत्नी हेतु 25,000 माता/पिता हेतु 25,000, वरिष्ठ नागरिक 50,000} | S157: ='Income Tax Cal. Report'!S37 -> 0.00 | U157: =IF(S157>0,1,0) -> 0 | V157: =U157 -> 0 | W157: =IF(V157>V156,1,0) -> 0 | X157: U/s 80 D-Medical Premium
Q158: =W158 -> 0 | R158: ='Income Tax Cal. Report'!C38 -> 2. धारा 80DD - विकलांग आश्रितों का चिकित्सा उपचार (अधिकतम 75,000, 80% या अधिक विक्लांगता 1,25,000) | S158: ='Income Tax Cal. Report'!S38 -> 0.00 | U158: =IF(S158>0,1,0) -> 0 | V158: =U158+V157 -> 0 | W158: =IF(V158>V157,1+V157,0) -> 0 | X158: U/s 80 DD
Q159: 0 | R159: ='Income Tax Cal. Report'!C39 -> 3. धारा 80DDB -विशिष्ठ रोगों के उपचार हेतु कटौती (सामान्य 40,000 एवं वरिष्ठ नागरिक 1 लाख) | S159: ='Income Tax Cal. Report'!S39 -> 0.00 | U159: 0 | V159: =U159+V158 -> 0 | W159: =IF(V159>V158,1+V158,0) -> 0 | X159: U/s 80 DDB
Q160: 0 | R160: ='Income Tax Cal. Report'!C40 -> 4. धारा 80E - उच्च शिक्षा हेतु लिए ऋण पर ब्याज (धारा 80E) | S160: ='Income Tax Cal. Report'!S40 -> 0.00 | U160: 0 | V160: =U160+V159 -> 0 | W160: 0 | X160: U/s 80 E-Higher Education
Q161: 0 | R161: ='Income Tax Cal. Report'!C41 -> 5. धारा 80G -धर्मार्थ संस्थाओं को दिए दान (श्रेणी 'क' 100% एवं श्रेणी 'ख' 50%) | S161: ='Income Tax Cal. Report'!S41 -> 0.00 | U161: 0 | V161: =U161+V160 -> 0 | W161: 0 | X161: U/s 80 G-Donation
Q162: 0 | R162: ='Income Tax Cal. Report'!C42 -> 6. धारा 80U -स्थाई शारीरिक विक्लांगता की दशा में (अधिकतम 75,000 तथा अधिनियम 1995 के अनुसार 80% विक्लांगता 1,25,000) | S162: ='Income Tax Cal. Report'!S42 -> 0.00 | U162: 0 | V162: =U162+V161 -> 0 | W162: 0 | X162: U/s 80 U-Permanent Disability
Q163: 0 | R163: ='Income Tax Cal. Report'!C43 -> 7. अधिनियम 1995 के अनुसार धारा 80 TTA के तहत बचत खाते की जमा राशी पर प्राप्त ब्याज में छूट 10000 (80 TTB-वरिष्ठ नागरिक अधिकतम 50,000) | S163: ='Income Tax Cal. Report'!S43 -> 0.00 | U163: 0 | V163: =U163+V162 -> 0 | W163: 0 | X163: U/s 80 TTA/80 TTB-Saving Interest
Q164: 0 | R164: ='Income Tax Cal. Report'!C44 -> 8. धारा 80 GGA -अनुमोदित वैज्ञानिक,सामाजिक,ग्रामीण विकास आदि हेतु दिया गया दान | S164: ='Income Tax Cal. Report'!S44 -> 0.00 | U164: 0 | V164: 0 | W164: 0 | X164: U/s 80 GGA

Sheet OLD REGIME (hidden)
B1: ='Exemp.(HRA+Other) & Other incom'!A1 -> District Education Officer, Education Department Primary Education of Bihar
B2: Income Tax Calculation F.Y. 2022-22 (A.Y.2023-24) | N2: Old Tax Regime
B3: 1 | C3: कर्मचारी का नाम :- | E3: ='Table (Income-Deduction)'!F4 -> SHAHID ALI | K3: पद :- | L3: ='Table (Income-Deduction)'!P4 -> Block Teacher | O3: PAN : | P3: ='Table (Income-Deduction)'!F6 -> BFHPA0762G (BUXAR)
B4: 2 | C4: आय:वर्ष 2022-23 में कुल प्राप्त वेतन (कर योग्य सुविधाओं के मूल्य सहित) | P4: Rs. | Q4: ='Table (Income-Deduction)'!O32 -> 499964.00
B5: 3 | C5: गृह किराया धारा 10 (13-A) के अंतर्गत एवं 10(14) के अंतर्गत वेतन भत्ते जो कर मुक्त है l | P5: Rs. | Q5: =IF(N2="old tax regime",'Exemp.(HRA+Other) & Other incom'!K4,0) -> 13822.00
B6: 4 | C6: शेष (2-3) | P6: Rs. | Q6: =Q4-Q5 -> 486142.00
B7: 5 | C7: (i) मनोरंजन भत्ता धारा 16 (ii) के अंतर्गत (अधिकतम 5000 रूपये) | M7: ='Exemp.(HRA+Other) & Other incom'!L13 -> 0.00
C8: (ii) व्यवसाय कर धारा 16 (iii) के अंतर्गत (अधिकतम 5000 रूपये) | M8: ='Exemp.(HRA+Other) & Other incom'!L14 -> 1000.00
C9: (iii) स्टेंडर्ड डिडक्शन (Standard Deduction)-अधिकतम 50,000 | M9: 50000.00 | P9: Rs. | Q9: =IF(N2="old tax regime",M7+M8+M9,0) -> 51000.00
B10: 6 | C10: शेष (4-5) | P10: Rs. | Q10: =Q6-Q9 -> 435142.00
B11: 7 | C11: (अ) गृह सम्पति से आय (1) स्वयं के उपयोग में शून्य | K11: (2) प्राप्त किराया | M11: ='Exemp.(HRA+Other) & Other incom'!L7 -> 0.00
C12: (ब) घटाइए | E12: किराये का 30% | H12: गृह ऋण पर ब्याज | K12: गृहकर | M12: योग 7 (ब)
E13: =IF(N2="old tax regime",ROUND(M11*0.3,0),0) -> 0.00 | H13: =IF(N2="old tax regime",'Exemp.(HRA+Other) & Other incom'!L17,0) -> 0.00 | K13: =IF(N2="old tax regime",'Exemp.(HRA+Other) & Other incom'!L15,0) -> 0.00 | M13: =E13+H13+K13 -> 0.00
C14: शेष -/+ {7(अ) एवं योग 7(ब)} | P14: Rs. | Q14: =M11-M13 -> 0.00
B15: 8 | C15: कुल शेष -/+ (6 एवं 7) | P15: Rs. | Q15: =Q10+Q14 -> 435142.00
B16: 9 | C16: अन्य आय | D16: 9(i) | E16: ='Exemp.(HRA+Other) & Other incom'!B8 -> अन्य आय (बैंक/एफडी में जमा ब्याज/अन्य ब्याज आदि का योग | P16: Rs. | Q16: ='Exemp.(HRA+Other) & Other incom'!L8 -> 0.00
D17: 9(ii) | E17: ='Exemp.(HRA+Other) & Other incom'!C9 -> (-----------------------------------------------------) | Q17: ='Exemp.(HRA+Other) & Other incom'!L9 -> 0.00
D18: 9(iii) | E18: ='Exemp.(HRA+Other) & Other incom'!C10 -> (-----------------------------------------------------) | Q18: ='Exemp.(HRA+Other) & Other incom'!L10 -> 0.00
C19: कुल (बिंदु संख्या -9) | Q19: =Q16+Q17+Q18 -> 0.00
B20: 10 | C20: सकल आय योग (8+9) | P20: Rs. | Q20: =Q15+Q19 -> 435142.00
B21: 11 | C21: घटाइए कटौतियां :- धारा US 80C, 80CCC,80CCD (1)
C22: (A) अधिकतम सीमा 1.50 लाख (धारा 80 CCE) के अलावा
C23: (i) | D23: राज्य बीमा (SI) | H23: Rs. | I23: =IF(N2="old tax regime",'Table (Income-Deduction)'!Q32,0) -> 0.00 | J23: (x) | K23: पेंशन प्लान हेतु अंशदान (धारा 80CCC) | N23: Rs. | O23: =IF(N2="old tax regime",'Exemp.(HRA+Other) & Other incom'!Q15,0) -> 0.00
C24: (ii) | D24: जीवन बीमा प्रीमियम (LIC) | H24: Rs. | I24: =IF(N2="old tax regime",'Table (Income-Deduction)'!T32+'Exemp.(HRA+Other) & Other incom'!L18,0) -> 0.00 | J24: (xi) | K24: राष्ट्रीय बचत पत्र पर अदत ब्याज | N24: Rs. | O24: =IF(N2="old tax regime",'Exemp.(HRA+Other) & Other incom'!L23,0) -> 0.00
C25: (iii) | D25: राष्ट्रीय बचत पत्र (NSC) | H25: Rs. | I25: =IF(N2="old tax regime",'Exemp.(HRA+Other) & Other incom'!L22,0) -> 0.00 | J25: (xii) | K25: ट्यूशन फी | N25: Rs. | O25: =IF(N2="old tax regime",'Exemp.(HRA+Other) & Other incom'!L20,0) -> 0.00
C26: (iv) | D26: लोक भविष्य निधि (PPF) | H26: Rs. | I26: =IF(N2="old tax regime",'Exemp.(HRA+Other) & Other incom'!L24,0) -> 0.00 | J26: (xiii) | K26: इक्विटी लिंक सेविंग स्कीम | N26: Rs. | O26: =IF(N2="old tax regime",'Exemp.(HRA+Other) & Other incom'!Q24,0) -> 0.00
C27: (v) | D27: राष्ट्रीय बचत स्कीम (NSS) | H27: Rs. | I27: =IF(N2="old tax regime",'Exemp.(HRA+Other) & Other incom'!L25,0) -> 0.00 | J27: (xv) | K27: स्थिगित वार्षिकी (Defferred Annuty) | N27: Rs. | O27: =IF(N2="old tax regime",'Exemp.(HRA+Other) & Other incom'!Q25,0) -> 0.00
C28: (vi) | D28: GPF/GPF 2004 | H28: Rs. | I28: =IF(N2="old tax regime",'Table (Income-Deduction)'!P32,0) -> 21600.00 | J28: (xiv) | K28: पी.एल.आई. (PLI) | N28: Rs. | O28: =IF(N2="old tax regime",'Exemp.(HRA+Other) & Other incom'!L19,0) -> 0.00
C29: (vii) | D29: सामूहिक दुर्घटना बीमा (GIS) | H29: Rs. | I29: =IF(N2="old tax regime",'Table (Income-Deduction)'!U32,0) -> 1000.00 | J29: (xvi) | K29: अन्य जमा राशी (80 C धारा के अंतर्गत) | N29: Rs. | O29: =IF(N2="old tax regime",'Exemp.(HRA+Other) & Other incom'!Q14,0) -> 0.00
C30: (viii) | D30: UPLI/वार्षिक प्लान | H30: Rs. | I30: =IF(N2="old tax regime",'Exemp.(HRA+Other) & Other incom'!L21,0) -> 0.00 | J30: (xvii) | K30: सुकन्या समृद्धि योजना में जमा राशि | N30: Rs. | O30: =IF(N2="old tax regime",'Exemp.(HRA+Other) & Other incom'!L26,0) -> 0.00
C31: (ix) | D31: गृह ऋण किश्त(HBA Premium) | H31: Rs. | I31: =IF(N2="old tax regime",'Exemp.(HRA+Other) & Other incom'!L16,0) -> 0.00 | J31: (xviii) | N31: Rs.
C32: योग (i से xvii तक) | N32: Rs. | O32: =SUM(O23:O31,I23:I31) -> 22600.00
C33: अधिकतम कटौती की राशि 1.50 लाख रूपये तक | P33: Rs. | Q33: =IF(N2="new tax regime",0,IF(O32>=150000,150000,O32)) -> 22600.00
C34: (B) घटाइए - धारा 80CCD (1B) नवीन पेंशन योजना में अतिरिक्त अंशदान (अधिकतम रु.50,000) | P34: Rs. | Q34: =IF(N2="old tax regime",'Exemp.(HRA+Other) & Other incom'!Q16,0) -> 0.00
C35: योग 11(A+B+C) | P35: Rs. | Q35: =Q33+Q34 -> 22600.00
B36: 12 | C36: अन्य कटौतियां
C37: 1. धारा 80D - चिकित्सा बीमा प्रीमियम {स्वयं/पति/पत्नी हेतु 25,000 माता/पिता हेतु 25,000, वरिष्ठ नागरिक 50,000} | P37: Rs. | Q37: =IF(N2="old tax regime",'Exemp.(HRA+Other) & Other incom'!Q17,0) -> 0.00
C38: 2. धारा 80DD - विकलांग आश्रितों का चिकित्सा उपचार (अधिकतम 75,000, 80% या अधिक विक्लांगता 1,25,000) | P38: Rs. | Q38: =IF(N2="old tax regime",'Exemp.(HRA+Other) & Other incom'!Q18,0) -> 0.00
C39: 3. धारा 80DDB -विशिष्ठ रोगों के उपचार हेतु कटौती (सामान्य 40,000 एवं वरिष्ठ नागरिक 1 लाख) | P39: Rs. | Q39: =IF(N2="old tax regime",'Exemp.(HRA+Other) & Other incom'!Q19,0) -> 0.00
C40: 4. धारा 80E - उच्च शिक्षा हेतु लिए ऋण पर ब्याज (धारा 80E) | P40: Rs. | Q40: =IF(N2="old tax regime",'Exemp.(HRA+Other) & Other incom'!Q20,0) -> 0.00
C41: 5. धारा 80G -धर्मार्थ संस्थाओं को दिए दान (श्रेणी 'क' 100% एवं श्रेणी 'ख' 50%) | P41: Rs. | Q41: =IF(N2="old tax regime",'Exemp.(HRA+Other) & Other incom'!Q21,0) -> 0.00 | W41: >250000 | X41: >300000 | Y41: >500000 | Z41: >1000000
C42: 6. धारा 80U -स्थाई शारीरिक विक्लांगता की दशा में (अधिकतम 75,000 तथा अधिनियम 1995 के अनुसार 80% विक्लांगता 1,25,000) | P42: Rs. | Q42: =IF(N2="old tax regime",'Exemp.(HRA+Other) & Other incom'!Q22,0) -> 0.00 | W42: =IF($Q$48>1000000,1,IF($Q$48>500000,2,IF($Q$48>300000,3,IF($Q$48>250000,4,0)))) -> 3 | X42: =IF($Q$48>1000000,1,IF($Q$48>500000,2,IF($Q$48>300000,3,0))) -> 3 | Y42: =IF($Q$48>1000000,1,IF($Q$48>500000,2,0)) -> 0 | Z42: =IF($Q$48>1000000,1,0) -> 0
C43: 7. अधिनियम 1995 के अनुसार धारा 80 TTA के तहत बचत खाते की जमा राशी पर प्राप्त ब्याज में छूट 10000 (80 TTB-वरिष्ठ नागरिक अधिकतम 50,000) | P43: Rs. | Q43: =IF(N2="old tax regime",'Exemp.(HRA+Other) & Other incom'!Q13,0) -> 0.00 | V43: A | W43: =IF(W42>=3,ROUND((Q48-250000)*0.05,0),IF(W42=0,0,12500)) -> 8127 | X43: 0 | Y43: =IF($Y$42=2,($Q$48-500000)*0.2,IF($Y$42=1,100000,0)) -> 0 | Z43: =IF($Z$42>0,($Q$48-1000000)*0.3,0) -> 0
C44: 8. धारा 80 GGA -अनुमोदित वैज्ञानिक,सामाजिक,ग्रामीण विकास आदि हेतु दिया गया दान | P44: Rs. | Q44: =IF(N2="old tax regime",'Exemp.(HRA+Other) & Other incom'!Q23,0) -> 0.00 | V44: B | W44: 0.00 | X44: =IF(X42=3,ROUND((Q48-300000)*0.05,0),IF(X42=0,0,10000)) -> 5627 | Y44: =IF($Y$42=2,($Q$48-500000)*0.2,IF($Y$42=1,100000,0)) -> 0 | Z44: =IF($Z$42>0,($Q$48-1000000)*0.3,0) -> 0
C45: कुल योग 12 (1 से 8) | P45: Rs. | Q45: =SUM(Q37:Q44) -> 0.00 | V45: C | W45: 0.00 | X45: 0.00 | Y45: 0 | Z45: 0
B46: 13 | C46: कुल कटौती (11 एवं 12) | P46: Rs. | Q46: =Q35+Q45 -> 22600.00
B47: 14 | C47: कर योग्य आय (10-13) | P47: Rs. | Q47: =Q20-Q46 -> 412542.00
B48: 15 | C48: कुल आय की राशि को सम्पूर्ण करना (दस के गुणक में) धारा 288A | P48: Rs. | Q48: =ROUND(Q47,-1) -> 412540.00 | T48: =IF(N2="Old tax regime","A","B") -> A | U48: ='Basic Deta'!O10 -> A | V48: =CONCATENATE(T48,U48) -> AA
B49: 16 | C49: उपरोक्त बिंदु 15 के आधार पर आयकर की गणना
C50: सामान्य करदाता | H50: वरिष्ठ नागरिक (आयु 60 से 80 वर्ष) | L50: 80 वर्ष या अधिक आयु
C51: =IF($N$2="old tax regime","2,50,000 तक","2,50,000 तक") -> 2,50,000 तक | F51: Nil | H51: =IF($N$2="old tax regime","3,00,000 तक","3,00,000 तक") -> 3,00,000 तक | K51: Nil | L51: =IF($N$2="old tax regime","----","3,00,000 तक") -> ---- | O51: =IF($N$2="Old tax regime","----","Nil") -> ---- | P51: Rs. | Q51: 0.00
C52: 2,50,001-5,00,000 | F52: 5% | H52: 3,00,001-5,00,000 | K52: 5% | L52: =IF($N$2="old tax regime","5,00,000 तक","3,00,001-5,00,000") -> 5,00,000 तक | O52: =IF(N2="Old tax regime","Nil","5%") -> Nil | P52: Rs. | Q52: =IF($V$48="AA",W43,IF($V$48="AB",X44,IF($V$48="BA",W55,IF($V$48="BB",X56,IF($V$48="BC",X57,0))))) -> 8127.00
C53: =IF($N$2="old tax regime","5,00,001-10,00,000","5,00,001-7,50,000") -> 5,00,001-10,00,000 | F53: =IF(N2="Old tax regime","20%","10%") -> 20% | H53: =IF($N$2="old tax regime","5,00,001-10,00,000","5,00,001-7,50,000") -> 5,00,001-10,00,000 | K53: =IF(N2="Old tax regime","20%","10%") -> 20% | L53: =IF($N$2="old tax regime","5,00,001-10,00,000","5,00,001-7,50,000") -> 5,00,001-10,00,000 | O53: =IF(N2="Old tax regime","20%","10%") -> 20% | P53: Rs. | Q53: =IF($V$48="AA",Y43,IF($V$48="AB",Y44,IF($V$48="AC",Y45,IF($V$48="BA",Y55,IF($V$48="BB",Y56,IF($V$48="BC",Y57,0)))))) -> 0.00 | W53: >250000 | X53: >300000 | Y53: >500000 | Z53: >750000 | AA53: >1000000 | AB53: >1250000 | AC53: >1500000
C54: =IF($N$2="old tax regime","10,00,000 से अधिक","7,50,001-10,00,000") -> 10,00,000 से अधिक | F54: =IF(N2="Old tax regime","30%","15%") -> 30% | H54: =IF($N$2="old tax regime","10,00,000 से अधिक","7,50,001-10,00,000") -> 10,00,000 से अधिक | K54: =IF(N2="Old tax regime","30%","15%") -> 30% | L54: =IF($N$2="old tax regime","10,00,000 से अधिक","7,50,001-10,00,000") -> 10,00,000 से अधिक | O54: =IF(N2="Old tax regime","30%","15%") -> 30% | P54: Rs. | Q54: =IF($V$48="AA",Z43,IF($V$48="AB",Z44,IF($V$48="AC",Z45,IF($V$48="BA",Z55,IF($V$48="BB",Z56,IF($V$48="BC",Z57,0)))))) -> 0.00 | W54: =IF($Q$48>1500000,1,IF($Q$48>1250000,2,IF($Q$48>1000000,3,IF($Q$48>750000,4,IF($Q$48>500000,5,IF($Q$48>300000,6,IF($Q$48>250000,7,0))))))) -> 6 | X54: =IF($Q$48>1500000,1,IF($Q$48>1250000,2,IF($Q$48>1000000,3,IF($Q$48>750000,4,IF($Q$48>500000,5,IF($Q$48>300000,6,0)))))) -> 6 | Y54: =IF($Q$48>1500000,1,IF($Q$48>1250000,2,IF($Q$48>1000000,3,IF($Q$48>750000,4,IF($Q$48>500000,5,0))))) -> 0 | Z54: =IF($Q$48>1500000,1,IF($Q$48>1250000,2,IF($Q$48>1000000,3,IF($Q$48>750000,4,0)))) -> 0 | AA54: =IF($Q$48>1500000,1,IF($Q$48>1250000,2,IF($Q$48>1000000,3,0))) -> 0 | AB54: =IF($Q$48>1500000,1,IF($Q$48>1250000,2,0)) -> 0 | AC54: =IF($Q$48>1500000,1,0) -> 0
C55: =IF($N$2="old tax regime","----","10,00,001-12,50,000") -> ---- | F55: =IF(N2="Old tax regime","----","20%") -> ---- | H55: =IF($N$2="old tax regime","----","10,00,001-12,50,000") -> ---- | K55: =IF(N2="Old tax regime","----","20%") -> ---- | L55: =IF($N$2="old tax regime","----","10,00,001-12,50,000") -> ---- | O55: =IF(N2="Old tax regime","----","20%") -> ---- | P55: Rs. | Q55: =IF($T$48="a",0,AA55) -> 0.00 | V55: A | W55: =IF(W54>=6,ROUND(($Q$48-250000)*0.05,0),IF(W54=0,0,12500)) -> 8127 | X55: 0 | Y55: =IF($Y$54=5,($Q$48-500000)*0.1,IF($Y$54<=4,IF($Y$54=0,0,25000))) -> 0 | Z55: =IF($Z$54=4,($Q$48-750000)*0.15,IF($Z$54<=3,IF($Z$54=0,0,37500))) -> 0 | AA55: =IF($AA$54=3,($Q$48-1000000)*0.2,IF($AA$54<=2,IF($AA$54=0,0,50000))) -> 0 | AB55: =IF($AB$54=2,($Q$48-1250000)*0.25,IF($AB$54<=1,IF($AB$54=0,0,62500))) -> 0 | AC55: =IF($AC$54>0,($Q$48-1500000)*0.3,0) -> 0
C56: =IF($N$2="old tax regime","----","12,50,001-15,00,000") -> ---- | F56: =IF(N2="Old tax regime","----","25%") -> ---- | H56: =IF($N$2="old tax regime","----","12,50,001-15,00,000") -> ---- | K56: =IF(N2="Old tax regime","----","25%") -> ---- | L56: =IF($N$2="old tax regime","----","12,50,001-15,00,000") -> ---- | O56: =IF(N2="Old tax regime","----","25%") -> ---- | P56: Rs. | Q56: =IF($T$48="a",0,AB55) -> 0.00 | V56: B | W56: 0 | X56: =IF(X54=6,ROUND(($Q$48-300000)*0.05,0),IF(X54=0,0,10000)) -> 5627 | Y56: =IF($Y$54=5,($Q$48-500000)*0.1,IF($Y$54<=4,IF($Y$54=0,0,25000))) -> 0 | Z56: =IF($Z$54=4,($Q$48-750000)*0.15,IF($Z$54<=3,IF($Z$54=0,0,37500))) -> 0 | AA56: =IF($AA$54=3,($Q$48-1000000)*0.2,IF($AA$54<=2,IF($AA$54=0,0,50000))) -> 0 | AB56: =IF($AB$54=2,($Q$48-1250000)*0.25,IF($AB$54<=1,IF($AB$54=0,0,62500))) -> 0 | AC56: =IF($AC$54>0,($Q$48-1500000)*0.3,0) -> 0
C57: =IF($N$2="old tax regime","----","15,00,000 से अधिक") -> ---- | F57: =IF(N2="Old tax regime","----","30%") -> ---- | H57: =IF($N$2="old tax regime","----","15,00,000 से अधिक") -> ---- | K57: =IF(N2="Old tax regime","----","30%") -> ---- | L57: =IF($N$2="old tax regime","----","15,00,000 से अधिक") -> ---- | O57: =IF(N2="Old tax regime","----","30%") -> ---- | P57: Rs. | Q57: =IF($T$48="a",0,AC55) -> 0.00 | V57: C | W57: 0 | X57: =IF(X54=6,ROUND(($Q$48-300000)*0.05,0),IF(X54=0,0,10000)) -> 5627 | Y57: 0 | Z57: 0 | AA57: 0 | AB57: 0 | AC57: 0
C58: (1) योग आयकर | P58: Rs. | Q58: =SUM(Q51:Q57) -> 8127.00
C59: (2) छूट धारा 87 (A) (2.50 लाख से 5.00 लाख तक की कर योग्य आय पर आयकर की छूट अधिकतम रूपये 12,500 तक) | P59: Rs. | Q59: =IF(Q48<=500000,Q52,0) -> 8127.00
C60: (3) शेष आयकर (1-2) | P60: Rs. | Q60: =Q58-Q59 -> 0.00
C61: (4) शिक्षा उपकर 2% एवं उच्च शिक्षा के लिए अधिभार 2% (योग 4%) | P61: Rs. | Q61: =ROUND(Q60*0.04,0) -> 0.00
C62: कुल आयकर (3+4) | P62: Rs. | Q62: =Q60+Q61 -> 0.00
B63: 17 | C63: घटाइए :- धारा 89 के अंतर्गत राहत Rule 21A(2) | P63: Rs. | Q63: ='Exemp.(HRA+Other) & Other incom'!Q26 -> 0.00
B64: 18 | C64: कुल शेष आयकर | P64: Rs. | Q64: =Q62-Q63 -> 0.00
C65: कुल शेष आयकर की राशि (दस के गुणक में) | P65: Rs. | Q65: =ROUND(Q64,-1) -> 0.00
B66: 19 | C66: आयकर कटौती का विवरण | D66: Itax deducted Till Jun-2022 (First Quarter) | F66: Itax deducted July-22 to Sep.-22 (Second Quarter) | I66: Itax deducted Oct-22 to Dec.-22 (Third Quarter) | J66: Itax Deducted/Dedctable by Dec.22 Salary | K66: Itax Deducted/Dedctable by Jan-23 Salary | L66: Itax Deducted/Dedctable by Feb-23 Salary | M66: Itax Deducted addition to Salary | O66: Itax submitted by other means | P66: बिंदु 19 का योग
D67: =SUM('Table (Income-Deduction)'!#REF!) ->  | F67: =SUM('Table (Income-Deduction)'!#REF!) ->  | I67: =SUM('Table (Income-Deduction)'!#REF!) ->  | J67: ='Table (Income-Deduction)'!#REF! ->  | K67: ='Table (Income-Deduction)'!#REF! ->  | L67: ='Table (Income-Deduction)'!#REF! ->  | M67: =SUM('Table (Income-Deduction)'!#REF!) ->  | O67: ='Basic Deta'!N19 -> 0 | P67: Rs. | Q67: =SUM(D67:O67) -> 
D68: Income Tax Refundable/Payble | L68: =IF(Q67>Q65,"(Refundable)","(Payble)") ->  | P68: Rs. | Q68: =Q67-Q65 -> 
B69: ='Table (Income-Deduction)'!B33 -> Siganture of Employee | K69: ='Table (Income-Deduction)'!P33 -> Signature of DPO ()

Sheet NEW REGIME (hidden)
B1: ='Exemp.(HRA+Other) & Other incom'!A1 -> District Education Officer, Education Department Primary Education of Bihar
B2: Income Tax Calculation F.Y. 2022-22 (A.Y.2023-24) | N2: New Tax Regime
B3: 1 | C3: कर्मचारी का नाम :- | E3: ='Table (Income-Deduction)'!F4 -> SHAHID ALI | K3: पद :- | L3: ='Table (Income-Deduction)'!P4 -> Block Teacher | O3: PAN : | P3: ='Table (Income-Deduction)'!F6 -> BFHPA0762G (BUXAR)
B4: 2 | C4: आय:वर्ष 2022-23 में कुल प्राप्त वेतन (कर योग्य सुविधाओं के मूल्य सहित) | P4: Rs. | Q4: ='Table (Income-Deduction)'!O32 -> 499964.00
B5: 3 | C5: गृह किराया धारा 10 (13-A) के अंतर्गत एवं 10(14) के अंतर्गत वेतन भत्ते जो कर मुक्त है l | P5: Rs. | Q5: =IF(N2="old tax regime",'Exemp.(HRA+Other) & Other incom'!K4,0) -> 0.00
B6: 4 | C6: शेष (2-3) | P6: Rs. | Q6: =Q4-Q5 -> 499964.00
B7: 5 | C7: (i) मनोरंजन भत्ता धारा 16 (ii) के अंतर्गत (अधिकतम 5000 रूपये) | M7: ='Exemp.(HRA+Other) & Other incom'!L13 -> 0.00
C8: (ii) व्यवसाय कर धारा 16 (iii) के अंतर्गत (अधिकतम 5000 रूपये) | M8: ='Exemp.(HRA+Other) & Other incom'!L14 -> 1000.00
C9: (iii) स्टेंडर्ड डिडक्शन (Standard Deduction)-अधिकतम 50,000 | M9: 50000.00 | P9: Rs. | Q9: =IF(N2="old tax regime",M7+M8+M9,0) -> 0.00
B10: 6 | C10: शेष (4-5) | P10: Rs. | Q10: =Q6-Q9 -> 499964.00
B11: 7 | C11: (अ) गृह सम्पति से आय (1) स्वयं के उपयोग में शून्य | K11: (2) प्राप्त किराया | M11: ='Exemp.(HRA+Other) & Other incom'!L7 -> 0.00
C12: (ब) घटाइए | E12: किराये का 30% | H12: गृह ऋण पर ब्याज | K12: गृहकर | M12: योग 7 (ब)
E13: =IF(N2="old tax regime",ROUND(M11*0.3,0),0) -> 0.00 | H13: =IF(N2="old tax regime",'Exemp.(HRA+Other) & Other incom'!L17,0) -> 0.00 | K13: =IF(N2="old tax regime",'Exemp.(HRA+Other) & Other incom'!L15,0) -> 0.00 | M13: =E13+H13+K13 -> 0.00
C14: शेष -/+ {7(अ) एवं योग 7(ब)} | P14: Rs. | Q14: =M11-M13 -> 0.00
B15: 8 | C15: कुल शेष -/+ (6 एवं 7) | P15: Rs. | Q15: =Q10+Q14 -> 499964.00
B16: 9 | C16: अन्य आय | D16: 9(i) | E16: ='Exemp.(HRA+Other) & Other incom'!B8 -> अन्य आय (बैंक/एफडी में जमा ब्याज/अन्य ब्याज आदि का योग | P16: Rs. | Q16: ='Exemp.(HRA+Other) & Other incom'!L8 -> 0.00
D17: 9(ii) | E17: ='Exemp.(HRA+Other) & Other incom'!C9 -> (-----------------------------------------------------) | Q17: ='Exemp.(HRA+Other) & Other incom'!L9 -> 0.00
D18: 9(iii) | E18: ='Exemp.(HRA+Other) & Other incom'!C10 -> (-----------------------------------------------------) | Q18: ='Exemp.(HRA+Other) & Other incom'!L10 -> 0.00
C19: कुल (बिंदु संख्या -9) | Q19: =Q16+Q17+Q18 -> 0.00
B20: 10 | C20: सकल आय योग (8+9) | P20: Rs. | Q20: =Q15+Q19 -> 499964.00
B21: 11 | C21: घटाइए कटौतियां :- धारा US 80C, 80CCC,80CCD (1)
C22: (A) अधिकतम सीमा 1.50 लाख (धारा 80 CCE) के अलावा
C23: (i) | D23: राज्य बीमा (SI) | H23: Rs. | I23: =IF(N2="old tax regime",'Table (Income-Deduction)'!Q32,0) -> 0.00 | J23: (x) | K23: पेंशन प्लान हेतु अंशदान (धारा 80CCC) | N23: Rs. | O23: =IF(N2="old tax regime",'Exemp.(HRA+Other) & Other incom'!Q15,0) -> 0.00
C24: (ii) | D24: जीवन बीमा प्रीमियम (LIC) | H24: Rs. | I24: =IF(N2="old tax regime",'Table (Income-Deduction)'!T32+'Exemp.(HRA+Other) & Other incom'!L18,0) -> 0.00 | J24: (xi) | K24: राष्ट्रीय बचत पत्र पर अदत ब्याज | N24: Rs. | O24: =IF(N2="old tax regime",'Exemp.(HRA+Other) & Other incom'!L23,0) -> 0.00
C25: (iii) | D25: राष्ट्रीय बचत पत्र (NSC) | H25: Rs. | I25: =IF(N2="old tax regime",'Exemp.(HRA+Other) & Other incom'!L22,0) -> 0.00 | J25: (xii) | K25: ट्यूशन फी | N25: Rs. | O25: =IF(N2="old tax regime",'Exemp.(HRA+Other) & Other incom'!L20,0) -> 0.00
C26: (iv) | D26: लोक भविष्य निधि (PPF) | H26: Rs. | I26: =IF(N2="old tax regime",'Exemp.(HRA+Other) & Other incom'!L24,0) -> 0.00 | J26: (xiii) | K26: इक्विटी लिंक सेविंग स्कीम | N26: Rs. | O26: =IF(N2="old tax regime",'Exemp.(HRA+Other) & Other incom'!Q24,0) -> 0.00
C27: (v) | D27: राष्ट्रीय बचत स्कीम (NSS) | H27: Rs. | I27: =IF(N2="old tax regime",'Exemp.(HRA+Other) & Other incom'!L25,0) -> 0.00 | J27: (xv) | K27: स्थिगित वार्षिकी (Defferred Annuty) | N27: Rs. | O27: =IF(N2="old tax regime",'Exemp.(HRA+Other) & Other incom'!Q25,0) -> 0.00
C28: (vi) | D28: GPF/GPF 2004 | H28: Rs. | I28: =IF(N2="old tax regime",'Table (Income-Deduction)'!P32,0) -> 0.00 | J28: (xiv) | K28: पी.एल.आई. (PLI) | N28: Rs. | O28: =IF(N2="old tax regime",'Exemp.(HRA+Other) & Other incom'!L19,0) -> 0.00
C29: (vii) | D29: सामूहिक दुर्घटना बीमा (GIS) | H29: Rs. | I29: =IF(N2="old tax regime",'Table (Income-Deduction)'!U32,0) -> 0.00 | J29: (xvi) | K29: अन्य जमा राशी (80 C धारा के अंतर्गत) | N29: Rs. | O29: =IF(N2="old tax regime",'Exemp.(HRA+Other) & Other incom'!Q14,0) -> 0.00
C30: (viii) | D30: UPLI/वार्षिक प्लान | H30: Rs. | I30: =IF(N2="old tax regime",'Exemp.(HRA+Other) & Other incom'!L21,0) -> 0.00 | J30: (xvii) | K30: सुकन्या समृद्धि योजना में जमा राशि | N30: Rs. | O30: =IF(N2="old tax regime",'Exemp.(HRA+Other) & Other incom'!L26,0) -> 0.00
C31: (ix) | D31: गृह ऋण किश्त(HBA Premium) | H31: Rs. | I31: =IF(N2="old tax regime",'Exemp.(HRA+Other) & Other incom'!L16,0) -> 0.00 | J31: (xviii) | N31: Rs.
C32: योग (i से xvii तक) | N32: Rs. | O32: =SUM(O23:O31,I23:I31) -> 0.00
C33: अधिकतम कटौती की राशि 1.50 लाख रूपये तक | P33: Rs. | Q33: =IF(N2="new tax regime",0,IF(O32>=150000,150000,O32)) -> 0.00
C34: (B) घटाइए - धारा 80CCD (1B) नवीन पेंशन योजना में अतिरिक्त अंशदान (अधिकतम रु.50,000) | P34: Rs. | Q34: =IF(N2="old tax regime",'Exemp.(HRA+Other) & Other incom'!Q16,0) -> 0.00
C35: योग 11(A+B+C) | P35: Rs. | Q35: =Q33+Q34 -> 0.00
B36: 12 | C36: अन्य कटौतियां
C37: 1. धारा 80D - चिकित्सा बीमा प्रीमियम {स्वयं/पति/पत्नी हेतु 25,000 माता/पिता हेतु 25,000, वरिष्ठ नागरिक 50,000} | P37: Rs. | Q37: =IF(N2="old tax regime",'Exemp.(HRA+Other) & Other incom'!Q17,0) -> 0.00
C38: 2. धारा 80DD - विकलांग आश्रितों का चिकित्सा उपचार (अधिकतम 75,000, 80% या अधिक विक्लांगता 1,25,000) | P38: Rs. | Q38: =IF(N2="old tax regime",'Exemp.(HRA+Other) & Other incom'!Q18,0) -> 0.00
C39: 3. धारा 80DDB -विशिष्ठ रोगों के उपचार हेतु कटौती (सामान्य 40,000 एवं वरिष्ठ नागरिक 1 लाख) | P39: Rs. | Q39: =IF(N2="old tax regime",'Exemp.(HRA+Other) & Other incom'!Q19,0) -> 0.00
C40: 4. धारा 80E - उच्च शिक्षा हेतु लिए ऋण पर ब्याज (धारा 80E) | P40: Rs. | Q40: =IF(N2="old tax regime",'Exemp.(HRA+Other) & Other incom'!Q20,0) -> 0.00
C41: 5. धारा 80G -धर्मार्थ संस्थाओं को दिए दान (श्रेणी 'क' 100% एवं श्रेणी 'ख' 50%) | P41: Rs. | Q41: =IF(N2="old tax regime",'Exemp.(HRA+Other) & Other incom'!Q21,0) -> 0.00 | W41: >250000 | X41: >300000 | Y41: >500000 | Z41: >1000000
C42: 6. धारा 80U -स्थाई शारीरिक विक्लांगता की दशा में (अधिकतम 75,000 तथा अधिनियम 1995 के अनुसार 80% विक्लांगता 1,25,000) | P42: Rs. | Q42: =IF(N2="old tax regime",'Exemp.(HRA+Other) & Other incom'!Q22,0) -> 0.00 | W42: =IF($Q$48>1000000,1,IF($Q$48>500000,2,IF($Q$48>300000,3,IF($Q$48>250000,4,0)))) -> 3 | X42: =IF($Q$48>1000000,1,IF($Q$48>500000,2,IF($Q$48>300000,3,0))) -> 3 | Y42: =IF($Q$48>1000000,1,IF($Q$48>500000,2,0)) -> 0 | Z42: =IF($Q$48>1000000,1,0) -> 0
C43: 7. अधिनियम 1995 के अनुसार धारा 80 TTA के तहत बचत खाते की जमा राशी पर प्राप्त ब्याज में छूट 10000 (80 TTB-वरिष्ठ नागरिक अधिकतम 50,000) | P43: Rs. | Q43: =IF(N2="old tax regime",'Exemp.(HRA+Other) & Other incom'!Q13,0) -> 0.00 | V43: A | W43: =IF(W42>=3,ROUND((Q48-250000)*0.05,0),IF(W42=0,0,12500)) -> 12498 | X43: 0 | Y43: =IF($Y$42=2,($Q$48-500000)*0.2,IF($Y$42=1,100000,0)) -> 0 | Z43: =IF($Z$42>0,($Q$48-1000000)*0.3,0) -> 0
C44: 8. धारा 80 GGA -अनुमोदित वैज्ञानिक,सामाजिक,ग्रामीण विकास आदि हेतु दिया गया दान | P44: Rs. | Q44: =IF(N2="old tax regime",'Exemp.(HRA+Other) & Other incom'!Q23,0) -> 0.00 | V44: B | W44: 0.00 | X44: =IF(X42=3,ROUND((Q48-300000)*0.05,0),IF(X42=0,0,10000)) -> 9998 | Y44: =IF($Y$42=2,($Q$48-500000)*0.2,IF($Y$42=1,100000,0)) -> 0 | Z44: =IF($Z$42>0,($Q$48-1000000)*0.3,0) -> 0
C45: कुल योग 12 (1 से 8) | P45: Rs. | Q45: =SUM(Q37:Q44) -> 0.00 | V45: C | W45: 0.00 | X45: 0.00 | Y45: 0 | Z45: 0
B46: 13 | C46: कुल कटौती (11 एवं 12) | P46: Rs. | Q46: =Q35+Q45 -> 0.00
B47: 14 | C47: कर योग्य आय (10-13) | P47: Rs. | Q47: =Q20-Q46 -> 499964.00
B48: 15 | C48: कुल आय की राशि को सम्पूर्ण करना (दस के गुणक में) धारा 288A | P48: Rs. | Q48: =ROUND(Q47,-1) -> 499960.00 | T48: =IF(N2="Old tax regime","A","B") -> B | U48: ='Basic Deta'!O10 -> A | V48: =CONCATENATE(T48,U48) -> BA
B49: 16 | C49: उपरोक्त बिंदु 15 के आधार पर आयकर की गणना
C50: सामान्य करदाता | H50: वरिष्ठ नागरिक (आयु 60 से 80 वर्ष) | L50: 80 वर्ष या अधिक आयु
C51: =IF($N$2="old tax regime","2,50,000 तक","2,50,000 तक") -> 2,50,000 तक | F51: Nil | H51: =IF($N$2="old tax regime","3,00,000 तक","3,00,000 तक") -> 3,00,000 तक | K51: Nil | L51: =IF($N$2="old tax regime","----","3,00,000 तक") -> 3,00,000 तक | O51: =IF($N$2="Old tax regime","----","Nil") -> Nil | P51: Rs. | Q51: 0.00
C52: 2,50,001-5,00,000 | F52: 5% | H52: 3,00,001-5,00,000 | K52: 5% | L52: =IF($N$2="old tax regime","5,00,000 तक","3,00,001-5,00,000") -> 3,00,001-5,00,000 | O52: =IF(N2="Old tax regime","Nil","5%") -> 5% | P52: Rs. | Q52: =IF($V$48="AA",W43,IF($V$48="AB",X44,IF($V$48="BA",AH55,IF($V$48="BB",AI56,IF($V$48="BC",AI57,0))))) -> 12498.00
C53: =IF($N$2="old tax regime","5,00,001-10,00,000","5,00,001-7,50,000") -> 5,00,001-7,50,000 | F53: =IF(N2="Old tax regime","20%","10%") -> 10% | H53: =IF($N$2="old tax regime","5,00,001-10,00,000","5,00,001-7,50,000") -> 5,00,001-7,50,000 | K53: =IF(N2="Old tax regime","20%","10%") -> 10% | L53: =IF($N$2="old tax regime","5,00,001-10,00,000","5,00,001-7,50,000") -> 5,00,001-7,50,000 | O53: =IF(N2="Old tax regime","20%","10%") -> 10% | P53: Rs. | Q53: =IF($V$48="AA",Y43,IF($V$48="AB",Y44,IF($V$48="AC",Y45,IF($V$48="BA",AJ55,IF($V$48="BB",AJ56,IF($V$48="BC",AJ57,0)))))) -> 0.00 | AH53: >250000 | AI53: >300000 | AJ53: >500000 | AK53: >750000 | AL53: >1000000 | AM53: >1250000 | AN53: >1500000
C54: =IF($N$2="old tax regime","10,00,000 से अधिक","7,50,001-10,00,000") -> 7,50,001-10,00,000 | F54: =IF(N2="Old tax regime","30%","15%") -> 15% | H54: =IF($N$2="old tax regime","10,00,000 से अधिक","7,50,001-10,00,000") -> 7,50,001-10,00,000 | K54: =IF(N2="Old tax regime","30%","15%") -> 15% | L54: =IF($N$2="old tax regime","10,00,000 से अधिक","7,50,001-10,00,000") -> 7,50,001-10,00,000 | O54: =IF(N2="Old tax regime","30%","15%") -> 15% | P54: Rs. | Q54: =IF($V$48="AA",Z43,IF($V$48="AB",Z44,IF($V$48="AC",Z45,IF($V$48="BA",AK55,IF($V$48="BB",AK56,IF($V$48="BC",AK57,0)))))) -> 0.00 | AH54: =IF($Q$48>1500000,1,IF($Q$48>1250000,2,IF($Q$48>1000000,3,IF($Q$48>750000,4,IF($Q$48>500000,5,IF($Q$48>300000,6,IF($Q$48>250000,7,0))))))) -> 6 | AI54: =IF($Q$48>1500000,1,IF($Q$48>1250000,2,IF($Q$48>1000000,3,IF($Q$48>750000,4,IF($Q$48>500000,5,IF($Q$48>300000,6,0)))))) -> 6 | AJ54: =IF($Q$48>1500000,1,IF($Q$48>1250000,2,IF($Q$48>1000000,3,IF($Q$48>750000,4,IF($Q$48>500000,5,0))))) -> 0 | AK54: =IF($Q$48>1500000,1,IF($Q$48>1250000,2,IF($Q$48>1000000,3,IF($Q$48>750000,4,0)))) -> 0 | AL54: =IF($Q$48>1500000,1,IF($Q$48>1250000,2,IF($Q$48>1000000,3,0))) -> 0 | AM54: =IF($Q$48>1500000,1,IF($Q$48>1250000,2,0)) -> 0 | AN54: =IF($Q$48>1500000,1,0) -> 0
C55: =IF($N$2="old tax regime","----","10,00,001-12,50,000") -> 10,00,001-12,50,000 | F55: =IF(N2="Old tax regime","----","20%") -> 20% | H55: =IF($N$2="old tax regime","----","10,00,001-12,50,000") -> 10,00,001-12,50,000 | K55: =IF(N2="Old tax regime","----","20%") -> 20% | L55: =IF($N$2="old tax regime","----","10,00,001-12,50,000") -> 10,00,001-12,50,000 | O55: =IF(N2="Old tax regime","----","20%") -> 20% | P55: Rs. | Q55: =IF($T$48="a",0,AL55) -> 0.00 | AG55: A | AH55: =IF(AH54>=6,ROUND(($Q$48-250000)*0.05,0),IF(AH54=0,0,12500)) -> 12498 | AI55: 0 | AJ55: =IF($AJ$54=5,ROUND(($Q$48-500000)*0.1,0),IF($AJ$54<=4,IF($AJ$54=0,0,25000))) -> 0 | AK55: =IF($AK$54=4,ROUND(($Q$48-750000)*0.15,0),IF($AK$54<=3,IF($AK$54=0,0,37500))) -> 0 | AL55: =IF($AL$54=3,ROUND(($Q$48-1000000)*0.2,0),IF($AL$54<=2,IF($AL$54=0,0,50000))) -> 0 | AM55: =IF($AM$54=2,ROUND(($Q$48-1250000)*0.25,0),IF($AM$54<=1,IF($AM$54=0,0,62500))) -> 0 | AN55: =IF($AN$54>0,ROUND(($Q$48-1500000)*0.3,0),0) -> 0
C56: =IF($N$2="old tax regime","----","12,50,001-15,00,000") -> 12,50,001-15,00,000 | F56: =IF(N2="Old tax regime","----","25%") -> 25% | H56: =IF($N$2="old tax regime","----","12,50,001-15,00,000") -> 12,50,001-15,00,000 | K56: =IF(N2="Old tax regime","----","25%") -> 25% | L56: =IF($N$2="old tax regime","----","12,50,001-15,00,000") -> 12,50,001-15,00,000 | O56: =IF(N2="Old tax regime","----","25%") -> 25% | P56: Rs. | Q56: =IF($T$48="a",0,AM55) -> 0.00 | AG56: B | AH56: 0 | AI56: =IF(AI54=6,ROUND(($Q$48-300000)*0.05,0),IF(AI54=0,0,10000)) -> 9998 | AJ56: =IF($AJ$54=5,ROUND(($Q$48-500000)*0.1,0),IF($AJ$54<=4,IF($AJ$54=0,0,25000))) -> 0 | AK56: =IF($AK$54=4,ROUND(($Q$48-750000)*0.15,0),IF($AK$54<=3,IF($AK$54=0,0,37500))) -> 0 | AL56: =IF($AL$54=3,ROUND(($Q$48-1000000)*0.2,0),IF($AL$54<=2,IF($AL$54=0,0,50000))) -> 0 | AM56: =IF($AM$54=2,ROUND(($Q$48-1250000)*0.25,0),IF($AM$54<=1,IF($AM$54=0,0,62500))) -> 0 | AN56: =IF($AN$54>0,ROUND(($Q$48-1500000)*0.3,0),0) -> 0
C57: =IF($N$2="old tax regime","----","15,00,000 से अधिक") -> 15,00,000 से अधिक | F57: =IF(N2="Old tax regime","----","30%") -> 30% | H57: =IF($N$2="old tax regime","----","15,00,000 से अधिक") -> 15,00,000 से अधिक | K57: =IF(N2="Old tax regime","----","30%") -> 30% | L57: =IF($N$2="old tax regime","----","15,00,000 से अधिक") -> 15,00,000 से अधिक | O57: =IF(N2="Old tax regime","----","30%") -> 30% | P57: Rs. | Q57: =IF($T$48="a",0,AN55) -> 0.00 | AG57: C | AH57: 0 | AI57: =IF(AI54=6,ROUND(($Q$48-300000)*0.05,0),IF(AI54=0,0,10000)) -> 9998 | AJ57: =IF($AJ$54=5,ROUND(($Q$48-500000)*0.1,0),IF($AJ$54<=4,IF($AJ$54=0,0,25000))) -> 0 | AK57: =IF($AK$54=4,ROUND(($Q$48-750000)*0.15,0),IF($AK$54<=3,IF($AK$54=0,0,37500))) -> 0 | AL57: =IF($AL$54=3,ROUND(($Q$48-1000000)*0.2,0),IF($AL$54<=2,IF($AL$54=0,0,50000))) -> 0 | AM57: =IF($AM$54=2,ROUND(($Q$48-1250000)*0.25,0),IF($AM$54<=1,IF($AM$54=0,0,62500))) -> 0 | AN57: =IF($AN$54>0,ROUND(($Q$48-1500000)*0.3,0),0) -> 0
C58: (1) योग आयकर | P58: Rs. | Q58: =SUM(Q51:Q57) -> 12498.00
C59: (2) छूट धारा 87 (A) (2.50 लाख से 5.00 लाख तक की कर योग्य आय पर आयकर की छूट अधिकतम रूपये 12,500 तक) | P59: Rs. | Q59: =IF(Q48<=500000,Q52,0) -> 12498.00
C60: (3) शेष आयकर (1-2) | P60: Rs. | Q60: =Q58-Q59 -> 0.00
C61: (4) शिक्षा उपकर 2% एवं उच्च शिक्षा के लिए अधिभार 2% (योग 4%) | P61: Rs. | Q61: =ROUND(Q60*0.04,0) -> 0.00
C62: कुल आयकर (3+4) | P62: Rs. | Q62: =Q60+Q61 -> 0.00
B63: 17 | C63: घटाइए :- धारा 89 के अंतर्गत राहत Rule 21A(2) | P63: Rs. | Q63: ='Exemp.(HRA+Other) & Other incom'!Q26 -> 0.00
B64: 18 | C64: कुल शेष आयकर | P64: Rs. | Q64: =Q62-Q63 -> 0.00
C65: कुल शेष आयकर की राशि (दस के गुणक में) | P65: Rs. | Q65: =ROUND(Q64,-1) -> 0.00
B66: 19 | C66: आयकर कटौती का विवरण | D66: Itax deducted Till Jun-2022 (First Quarter) | F66: Itax deducted July-22 to Sep.-22 (Second Quarter) | I66: Itax deducted Oct-22 to Dec.-22 (Third Quarter) | J66: Itax Deducted/Dedctable by Dec.22 Salary | K66: Itax Deducted/Dedctable by Jan-23 Salary | L66: Itax Deducted/Dedctable by Feb-23 Salary | M66: Itax Deducted addition to Salary | O66: Itax submitted by other means | P66: बिंदु 19 का योग
D67: =SUM('Table (Income-Deduction)'!#REF!) ->  | F67: =SUM('Table (Income-Deduction)'!#REF!) ->  | I67: =SUM('Table (Income-Deduction)'!#REF!) ->  | J67: ='Table (Income-Deduction)'!#REF! ->  | K67: ='Table (Income-Deduction)'!#REF! ->  | L67: ='Table (Income-Deduction)'!#REF! ->  | M67: =SUM('Table (Income-Deduction)'!#REF!) ->  | O67: ='Basic Deta'!N19 -> 0 | P67: Rs. | Q67: =SUM(D67:O67) -> 
D68: Income Tax Refundable/Payble | L68: =IF(Q67>Q65,"(Refundable)","(Payble)") ->  | P68: Rs. | Q68: =Q67-Q65 -> 
B69: ='Table (Income-Deduction)'!B33 -> Siganture of Employee | K69: ='Table (Income-Deduction)'!P33 -> Signature of DPO ()

Sheet 10 E Us 89(1)
A2: धारा 89 के अंतर्गत राहत ↆ | B2: 1. If adopted for new tax regime in FY 2022-23 (Yes or No) | D2: =IF('Income Tax Cal. Report'!Z16="Old tax regime","No","Yes") -> No | G2: TABLE -A | AZ2: FORM 10E
B3: 2. Relief Claimed in the Assessment Year | D3: 2023-24 | G3: [See Item 7 of Annexure-I] | AZ3: [See Rule 21AA]
B4: 3. Name of the Employee | D4: ='Form-16'!H10 -> SHAHID ALI (Block Teacher) | G4: Previous Year(s) | H4: Total income of the relevent previous year | I4: 500000>250000 | J4: 1000000<>500000 | K4: >1000000 | L4: 750000<500000 | M4: 1000000<750000 | N4: 1250000<>1000000 | O4: 1500000<>1250001 | P4: >1500000 | Q4: Tax (Old) | R4: Tax (New) | S4: Itax+Cess (OLD) | T4: Itax+Cess (NEW) | U4: Salary received in arrears or advance relating to the relevant previous year as mentioned in column (1) | V4: Total income (as increased by salary received in arrears or advance) of the relevant previous year as mentioned in column (1)[Add columns (2) and (3)] | W4: 500000>250000 | X4: 1000000<>500000 | Y4: >1000000 | Z4: 750000<500000 | AA4: 1000000<750000 | AB4: 1250000<>1000000 | AC4: 1500000<>1250001 | AD4: >1500000 | AE4: Tax (Old) | AF4: Tax (New) | AG4: Itax+Cess (OLD) | AH4: Itax+Cess (NEW) | AK4: Tax on total income as per column (2) | AL4: Tax on total income as per column (4) | AM4: Difference in tax [Amount under column (6) minus amount under column (5)] | AP4: ANNEXURE-I | AZ4: Form for furnishing particulars of income under section 192(2A) for the year ending 31st March, 2023 claiming relief under section 89(1) by a Government servant or an employee in a [company,co-operative society, local authority ,university, institution, association or body]
B5: 3. Address of the Employee | D5: ='Exemp.(HRA+Other) & Other incom'!D4 -> M.S. BASUDHAR | AP5: [See item 2 of Form No, 10E]
B6: 5. PAN of the Employee | E6: ='Basic Deta'!L10 -> BFHPA0762G | AP6: ARREARS OR ADVANCE SALARY
B7: 6. Date of Birth (dd/mm/yyyy) | AP7: 1 | AQ7: Total Income | AR7: =AR12-AR10 -> 413,540 | AS7: =IF(AR7>500000,250000,IF(AR7>250000,AR7-250000,0)) -> 163,540 | AT7: =IF(AS7>=250000,ROUND(AS7*0.05,0),0) -> 0 | AU7: =ROUND(SUM(AT7:AT9)*1.04,0) -> 0 | AV7: =IF(AR7>500000,250000,IF(AR7>250000,AR7-250000,0)) -> 163,540 | AW7: =IF(AV7>=250000,ROUND(AV7*0.05,0),0) -> 0 | AX7: =ROUND(SUM(AW7:AW12)*1.04,0) -> 0 | AZ7: 1. Name and address of the Employee | BE7: =CONCATENATE('Form-16'!H10,"-",'Form-16'!H12) -> SHAHID ALI (Block Teacher)-Posting Place Name:-M.S. BASUDHAR
B8: 7. Gander | E8: Male | AQ8: (Excluding salary received in arrears or advance) | AS8: =IF(AR7>1000000,500000,IF(AR7>500000,AR7-500000,0)) -> 0 | AT8: =ROUND(AS8*0.2,0) -> 0 | AV8: =IF(AR7>750000,250000,IF(AR7>500000,AR7-500000,0)) -> 0 | AW8: =ROUND(AV8*0.1,0) -> 0
A9: =AR26 -> ₹ 0.00 | B9: 8. Residential Status (Assumed to be Resident) | E9: Resident | AS9: =IF(AR7>1000000,AR7-1000000,0) -> 0 | AT9: =ROUND(AS9*0.3,0) -> 0 | AV9: =IF(AR7>1000000,250000,IF(AR7>750000,AR7-750000,0)) -> 0 | AW9: =ROUND(AV9*0.15,0) -> 0 | AZ9: 2. Permanent Account Number | BE9: ='Form-16'!H15 -> BFHPA0762G
B10: 9. Total Taxable Income including Arrear Received in FY 2022-23 | E10: ='Income Tax Cal. Report'!S48 -> 413,540 | AP10: 2 | AQ10: Salary received in arrear or advance | AR10: =U22 -> 0 | AV10: =IF(AR7>1250000,250000,IF(AR7>1000000,AR7-1000000,0)) -> 0 | AW10: =ROUND(AV10*0.2,0) -> 0
B11: 10. Year-wise Breakup of Arrears received and taxable income | AV11: =IF(AR7>1500000,250000,IF(AR7>1250000,AR7-1250000,0)) -> 0 | AW11: =ROUND(AV11*0.25,0) -> 0 | AZ11: 3. Residential Status
B12: Financial Year | C12: Taxable Income of the relevant F.Y. without the arrears or advance (Rs.) | D12: Amount of Arrears/Advance received against each Financial Year (Rs.) | G12: 1 | H12: 2 | U12: 3 | V12: 4 [2+3] | AK12: 5 | AL12: 6 | AM12: 7 | AP12: 3 | AQ12: Total Income | AR12: =E10 -> 413,540 | AV12: =IF(AR7>1500000,AR7-1500000,0) -> 0 | AW12: =ROUND(AV12*0.3,0) -> 0 | AZ12: Particulars of Income referred to in rule 21A of the Income Tax Rules, 1962 during the previous year relevant to the
B13: 2021-22 | G13: =B13 -> 2021-22 | H13: =C13 -> 0 | I13: =IF(H13>500000,250000,IF(H13>250000,H13-250000,0)) -> 0 | J13: =IF(H13>1000000,500000,IF(H13>500000,H13-500000,0)) -> 0 | K13: =IF(H13>1000000,H13-1000000,0) -> 0 | L13: =IF(H13>750000,250000,IF(H13>500000,H13-500000,0)) -> 0 | M13: =IF(H13>1000000,250000,IF(H13>750000,H13-750000,0)) -> 0 | N13: =IF(H13>1250000,250000,IF(H13>1000000,H13-1000000,0)) -> 0 | O13: =IF(H13>1500000,250000,IF(H13>1250000,H13-1500000,0)) -> 0 | P13: =IF(H13>1500000,H13-1500000,0) -> 0 | Q13: =ROUND(I13*0.05,0)+ROUND(J13*0.2,0)+ROUND(K13*0.3,0) -> 0 | R13: =ROUND(I13*0.05,0)+ROUND(L13*0.1,0)+ROUND(M13*0.15,0)+ROUND(N13*0.2,0)+ROUND(O13*0.25,0)+ROUND(P13*0.3,0) -> 0 | S13: =ROUND(Q13*1.04,-1) -> 0 | T13: =ROUND(R13*1.04,-1) -> 0 | U13: =D13 -> 0 | V13: =H13+U13 -> 0 | W13: =IF(V13>500000,250000,IF(V13>250000,V13-250000,0)) -> 0 | X13: =IF(V13>1000000,500000,IF(V13>500000,V13-500000,0)) -> 0 | Y13: =IF(V13>1000000,V13-1000000,0) -> 0 | Z13: =IF(V13>750000,250000,IF(V13>500000,V13-500000,0)) -> 0 | AA13: =IF(V13>1000000,250000,IF(V13>750000,V13-750000,0)) -> 0 | AB13: =IF(V13>1250000,250000,IF(V13>1000000,V13-1000000,0)) -> 0 | AC13: =IF(V13>1500000,250000,IF(V13>1250000,V13-1500000,0)) -> 0 | AD13: =IF(V13>1500000,V13-1500000,0) -> 0 | AE13: =ROUND(W13*0.05,0)+ROUND(X13*0.2,0)+ROUND(Y13*0.3,0) -> 0 | AF13: =ROUND(W13*0.05,0)+ROUND(Z13*0.1,0)+ROUND(AA13*0.15,0)+ROUND(AB13*0.2,0)+ROUND(AC13*0.25,0)+ROUND(AD13*0.3,0) -> 0 | AG13: =ROUND(AE13*1.04,-1) -> 0 | AH13: =ROUND(AF13*1.04,-1) -> 0 | AI13: =IF($D$2="NO",S13,T13) -> 0 | AJ13: =IF($D$2="NO",AG13,AH13) -> 0 | AK13: =IF(AI13<=12500,0,AI13) -> 0 | AL13: =IF(AK13<=12500,0,AJ13) -> 0 | AM13: =AL13-AK13 -> 0 | AQ13: (As increased by salary received in arrears or advance) | AZ13: Assessment Year : 2023-24
B14: 2020-21 | G14: 2020-21 | H14: 0 | I14: =IF(H14>500000,250000,IF(H14>250000,H14-250000,0)) -> 0 | J14: =IF(H14>1000000,500000,IF(H14>500000,H14-500000,0)) -> 0 | K14: 0 | L14: =IF(H14>750000,250000,IF(H14>500000,H14-500000,0)) -> 0 | M14: =IF(H14>1000000,250000,IF(H14>750000,H14-750000,0)) -> 0 | N14: =IF(H14>1250000,250000,IF(H14>1000000,H14-1000000,0)) -> 0 | O14: =IF(H14>1500000,250000,IF(H14>1250000,H14-1500000,0)) -> 0 | P14: =IF(H14>1500000,H14-1500000,0) -> 0 | Q14: 0 | R14: =ROUND(I14*0.05,0)+ROUND(L14*0.1,0)+ROUND(M14*0.15,0)+ROUND(N14*0.2,0)+ROUND(O14*0.25,0)+ROUND(P14*0.3,0) -> 0 | S14: =ROUND(Q14*1.04,-1) -> 0 | T14: =ROUND(R14*1.04,-1) -> 0 | U14: =D14 -> 0 | V14: 0 | W14: =IF(V14>500000,250000,IF(V14>250000,V14-250000,0)) -> 0 | X14: =IF(V14>1000000,500000,IF(V14>500000,V14-500000,0)) -> 0 | Y14: 0 | Z14: =IF(V14>750000,250000,IF(V14>500000,V14-500000,0)) -> 0 | AA14: =IF(V14>1000000,250000,IF(V14>750000,V14-750000,0)) -> 0 | AB14: =IF(V14>1250000,250000,IF(V14>1000000,V14-1000000,0)) -> 0 | AC14: =IF(V14>1500000,250000,IF(V14>1250000,V14-1500000,0)) -> 0 | AD14: =IF(V14>1500000,V14-1500000,0) -> 0 | AE14: 0 | AF14: =ROUND(W14*0.05,0)+ROUND(Z14*0.1,0)+ROUND(AA14*0.15,0)+ROUND(AB14*0.2,0)+ROUND(AC14*0.25,0)+ROUND(AD14*0.3,0) -> 0 | AG14: =ROUND(AE14*1.04,-1) -> 0 | AH14: =ROUND(AF14*1.04,-1) -> 0 | AI14: =IF($D$2="NO",S14,T14) -> 0 | AJ14: =IF($D$2="NO",AG14,AH14) -> 0 | AK14: =IF(AI14<=12500,0,AI14) -> 0 | AL14: =IF(AK14<=12500,0,AJ14) -> 0 | AM14: =AL14-AK14 -> 0 | AR14: =IF(D2="No",AU14,AX14) -> 0 | AS14: =IF(AR12>500000,250000,IF(AR12>250000,AR12-250000,0)) -> 163,540 | AT14: =IF(AS14>=250000,ROUND(AS14*0.05,0),0) -> 0 | AU14: =ROUND(SUM(AT14:AT16)*1.04,0) -> 0 | AV14: =IF(AR12>500000,250000,IF(AR12>250000,AR12-250000,0)) -> 163,540 | AW14: =IF(AV14>=250000,ROUND(AV14*0.05,0),0) -> 0 | AX14: =ROUND(SUM(AW14:AW19)*1.04,0) -> 0 | BF14: Amount (Rs.)
B15: 2019-20 | G15: 2019-20 | H15: 0 | I15: 0 | J15: 0 | K15: 0 | L15: 0 | Q15: 0 | S15: =ROUND(Q15*1.04,-1) -> 0 | U15: 0 | V15: 0 | W15: 0 | X15: 0 | Y15: 0 | Z15: 0 | AE15: 0 | AG15: =ROUND(AE15*1.04,-1) -> 0 | AI15: =S15 -> 0 | AJ15: =AG15 -> 0 | AK15: 0 | AL15: 0 | AM15: 0 | AP15: 4 | AQ15: Tax on total income (as per item 3) | AS15: =IF(AR12>1000000,500000,IF(AR12>500000,AR12-500000,0)) -> 0 | AT15: =ROUND(AS15*0.2,0) -> 0 | AV15: =IF(AR12>750000,250000,IF(AR12>500000,AR12-500000,0)) -> 0 | AW15: =ROUND(AV15*0.1,0) -> 0 | AZ15: 1 | BA15: (a) | BB15: Salary received in arrears or in advance in accordance with the provisions of sub rule (2) of rule 21A | BF15: =AR14 -> 0
B16: 2018-19 | G16: 2018-19 | H16: 0 | I16: 0 | J16: 0 | K16: 0 | Q16: 0 | S16: =ROUND(Q16*1.04,-1) -> 0 | U16: =D16 -> 0 | V16: 0 | W16: 0 | X16: 0 | Y16: 0 | Z16: 0 | AE16: 0 | AG16: =ROUND(AE16*1.04,-1) -> 0 | AI16: 0 | AJ16: 0 | AK16: 0 | AL16: 0 | AM16: 0 | AS16: =IF(AR12>1000000,AR12-1000000,0) -> 0 | AT16: =ROUND(AS16*0.3,0) -> 0 | AV16: =IF(AR12>1000000,250000,IF(AR12>750000,AR12-750000,0)) -> 0 | AW16: =ROUND(AV16*0.15,0) -> 0
B17: 2017-18 | G17: 2017-18 | H17: 0 | I17: 0 | J17: 0 | K17: 0 | Q17: 0 | S17: =ROUND(Q17*1.03,-1) -> 0 | U17: 0 | V17: 0 | W17: 0 | X17: 0 | Y17: 0 | Z17: 0 | AE17: 0 | AG17: =ROUND(AE17*1.03,-1) -> 0 | AI17: 0 | AJ17: 0 | AK17: =IF(AI17<=2500,0,AI17) -> 0 | AL17: =IF(AK17<=2500,0,AJ17) -> 0 | AM17: 0 | AP17: 5 | AQ17: Tax on total income (as per item 1) | AR17: =IF(D2="NO",AU7,AX7) -> 0 | AV17: =IF(AR12>1250000,250000,IF(AR12>1000000,AR12-1000000,0)) -> 0 | AW17: =ROUND(AV17*0.2,0) -> 0
B18: 2016-17 | G18: 2016-17 | H18: 0 | I18: 0 | J18: =IF(H18>1000000,500000,IF(H18>500000,H18-500000,0)) -> 0 | K18: 0 | Q18: 0 | S18: =ROUND(Q18*1.03,-1) -> 0 | U18: 0 | V18: 0 | W18: 0 | X18: 0 | Y18: 0 | AE18: 0 | AG18: =ROUND(AE18*1.03,-1) -> 0 | AI18: 0 | AJ18: 0 | AK18: =IF(AI18<=5000,0,IF(AI18>5000,AI18-5000)) -> 0 | AL18: =IF(AJ18<=5000,0,IF(AJ18>5000,AJ18-5000)) -> 0 | AM18: 0 | AV18: =IF(AR12>1500000,250000,IF(AR12>1250000,AR12-1250000,0)) -> 0 | AW18: =ROUND(AV18*0.25,0) -> 0 | BA18: (b) | BB18: Payment in the nature of gratuity in respect of past services, exteding over a period of not less than 5 years in advance in accordance with the provisions of sub rule (3) of rule 21A | BF18: Not Applicable
B19: 2015-16 | G19: 2015-16 | H19: 0 | I19: =IF(H19>500000,200000,IF(H19>300000,H19-300000,0)) -> 0 | J19: =IF(H19>1000000,500000,IF(H19>500000,H19-500000,0)) -> 0 | K19: =IF(J19>0,20000+(J19*0.2),0) -> 0 | L19: =IF(H19>1000000,H19-1000000,0) -> 0 | M19: =IF(L19>0,120000+(L19*0.3),0) -> 0 | Q19: =ROUND(I19*0.1,0)+K19+M19 -> 0 | S19: =ROUND(Q19*1.03,-1) -> 0 | U19: 0 | V19: 0 | W19: =IF(V19>500000,200000,IF(V19>300000,V19-300000,0)) -> 0 | X19: 0 | Y19: =IF(X19>0,20000+(X19*0.2),0) -> 0 | Z19: =IF(V19>1000000,V19-1000000,0) -> 0 | AA19: =IF(Z19>0,120000+(Z19*0.3),0) -> 0 | AE19: =ROUND(W19*0.1,0)+Y19+AA19 -> 0 | AG19: =ROUND(AE19*1.03,-1) -> 0 | AI19: 0 | AJ19: 0 | AK19: =IF(AI19<=2000,0,IF(AI19>2000,AI19-2000)) -> 0 | AL19: 0 | AM19: 0 | AP19: 6 | AQ19: Tax on salary received in arrears or advance | AR19: =AR14-AR17 -> 0 | AV19: =IF(AR12>1500000,AR12-1500000,0) -> 0 | AW19: =ROUND(AV19*0.3,0) -> 0
B20: 2014-15 | G20: 2014-15 | H20: 0 | I20: =IF(H20>500000,250000,IF(H20>250000,H20-250000,0)) -> 0 | J20: =IF(H20>1000000,500000,IF(H20>500000,H20-500000,0)) -> 0 | K20: =IF(J20>0,25000+(J20*0.2),0) -> 0 | L20: =IF(H20>1000000,H20-1000000,0) -> 0 | M20: =IF(L20>0,125000+(L20*0.3),0) -> 0 | Q20: =ROUND(I20*0.1,0)+K20+M20 -> 0 | S20: =ROUND(Q20*1.03,-1) -> 0 | U20: 0 | V20: 0 | W20: =IF(V20>500000,250000,IF(V20>250000,V20-250000,0)) -> 0 | X20: =IF(V20>1000000,500000,IF(V20>500000,V20-500000,0)) -> 0 | Y20: =IF(X20>0,25000+(X20*0.2),0) -> 0 | Z20: =IF(V20>1000000,V20-1000000,0) -> 0 | AA20: =IF(Z20>0,125000+(Z20*0.3),0) -> 0 | AE20: =ROUND(W20*0.1,0)+Y20+AA20 -> 0 | AG20: =ROUND(AE20*1.03,-1) -> 0 | AI20: 0 | AJ20: 0 | AK20: 0 | AL20: 0 | AM20: 0 | AQ20: (Difference between item 4 and item 5)
B21: 2013-14 | G21: 2013-14 | H21: 0 | I21: =IF(H21>500000,300000,IF(H21>200000,H21-200000,0)) -> 0 | J21: 0 | K21: =IF(H21>1000000,H21-1000000,0) -> 0 | Q21: =ROUND(I21*0.1,0)+ROUND(J21*0.2,0)+ROUND(K21*0.3,0) -> 0 | S21: =ROUND(Q21*1.03,-1) -> 0 | U21: 0 | V21: 0 | W21: =IF(V21>500000,300000,IF(V21>200000,V21-200000,0)) -> 0 | X21: 0 | Y21: =IF(V21>1000000,V21-1000000,0) -> 0 | AE21: =ROUND(W21*0.1,0)+ROUND(X21*0.2,0)+ROUND(Y21*0.3,0) -> 0 | AG21: =ROUND(AE21*1.03,-1) -> 0 | AI21: 0 | AJ21: 0 | AK21: 0 | AL21: 0 | AM21: 0
B22: Total | C22: =SUM(C6:C21) -> 0 | D22: =SUM(D6:D21) -> 0 | G22: Total | H22: =SUM(H13:H21) -> 0 | U22: =SUM(U13:U21) -> 0 | V22: =SUM(V13:V21) -> 0 | AK22: =SUM(AK13:AK21) -> 0 | AL22: 0 | AM22: =SUM(AM13:AM21) -> 0 | AP22: 7 | AQ22: Tax Computed in accordance with Table "A" | AR22: =AM22 -> 0 | BA22: (c) | BB22: Payment in the nature of compensation from the employer or former employer at or in connection with termination of employment after continuous service of not less than 3 years or where the unexpired portion of term of employment is also not less than 3 years in accordance with the provisions of sub rule (4) of rule 21A | BF22: Not Applicable
AQ23: (Brought from column 7 of Table "A")
AP25: 8 | AQ25: Relief under section 89(1)
AQ26: (Indicate the difference between the amounts mentioned | AR26: =AR19-AR22 -> 0
AQ27: against item 6 and 7)
BA28: (d) | BB28: Payment in commutation of pension in accordance with the provisions of sub rule (5) of rule 21A | BF28: Not Applicable
AZ31: 2 | BB31: Detailed particulars of payments referred to above may be given in Annexure I, II, III or IV, as the case may be.
BE36: Signature of the employee
AZ37: Verification
BA40: I | BB40: ='Basic Deta'!M6 -> 0 | BD40: do hereby declare that what is stated above is true to the best
BA41: of my knowledge and belief.
BA45: Place: | BC45: ='Exemp.(HRA+Other) & Other incom'!A1 -> District Education Officer, Education Department Primary Education of Bihar
BA46: Dated: | BC46: =TODAY() -> 2023-02-19

Sheet HRA Receipt
B2: 1 | C2: RECEIPT OF HOUSE RENT | N2: 2 | O2: RECEIPT OF HOUSE RENT
B3: (Under section 1 (13-A) of Income Tax Act) | N3: (Under section 1 (13-A) of Income Tax Act)
I5: Date :- | U5: Date :-
C6: I Owner | D6: ='Exemp.(HRA+Other) & Other incom'!$O$4 -> 0 | O6: I Owner | P6: ='Exemp.(HRA+Other) & Other incom'!$O$4 -> 0
D7: Received with Thanks from Sri/Smt. | H7: ='Exemp.(HRA+Other) & Other incom'!$A$4 -> SHAHID ALI | K7: =CONCATENATE("(",'Exemp.(HRA+Other) & Other incom'!$C$4,")") -> (Block Teacher) | P7: Received with Thanks from Sri/Smt. | T7: ='Exemp.(HRA+Other) & Other incom'!$A$4 -> SHAHID ALI | W7: =CONCATENATE("(",'Exemp.(HRA+Other) & Other incom'!$C$4,")") -> (Block Teacher)
C8: Address- | D8: ='Basic Deta'!$G$10 -> M.S. BASUDHAR | O8: Address- | P8: ='Basic Deta'!$G$10 -> M.S. BASUDHAR
C9: The sum of (Quarterly) | G9: =G10*3 -> Rs. 15330 | O9: The sum of (Quarterly) | S9: =G10*3 -> Rs. 15330
C10: Towards the House Rent (Monthly) @ | G10: ='Exemp.(HRA+Other) & Other incom'!$M$4 -> Rs. 5110 | O10: Towards the House Rent (Monthly) @ | S10: ='Exemp.(HRA+Other) & Other incom'!$M$4 -> Rs. 5110
C11: Per Month From :- | E11: 1 April, 2022 To 30 June, 2022 | O11: Per Month From :- | Q11: 1 July, 2022 To 30 Sep., 2022
C13: Rs. = | D13: =G9 -> 15330 | O13: Rs. = | P13: =G9 -> 15330
C15: Date:- | D15: =K5 -> 00:00:00 | O15: Date:- | P15: =K5 -> 00:00:00
G17: (Signature of House Owner) | S17: (Signature of House Owner)
G18: (Affix Revenue Stamp of Rs.1/-) | S18: (Affix Revenue Stamp of Rs.1/-)
G19: Name- | I19: =D6 -> 0 | S19: Name- | U19: =D6 -> 0
G20: ADDRESS | S20: ADDRESS
G21: ='Exemp.(HRA+Other) & Other incom'!$P$4 -> 0 | S21: ='Exemp.(HRA+Other) & Other incom'!$P$4 -> 0
G23: PAN NUMBER | J23: ='Exemp.(HRA+Other) & Other incom'!$Q$4 -> 0 | S23: PAN NUMBER | V23: ='Exemp.(HRA+Other) & Other incom'!$Q$4 -> 0
B26: 3 | C26: RECEIPT OF HOUSE RENT | N26: 4 | O26: RECEIPT OF HOUSE RENT
B27: (Under section 1 (13-A) of Income Tax Act) | N27: (Under section 1 (13-A) of Income Tax Act)
I29: Date :- | U29: Date :-
C30: I Owner | D30: ='Exemp.(HRA+Other) & Other incom'!$O$4 -> 0 | O30: I Owner | P30: ='Exemp.(HRA+Other) & Other incom'!$O$4 -> 0
D31: Received with Thanks from Sri/Smt. | H31: ='Exemp.(HRA+Other) & Other incom'!$A$4 -> SHAHID ALI | K31: =CONCATENATE("(",'Exemp.(HRA+Other) & Other incom'!$C$4,")") -> (Block Teacher) | P31: Received with Thanks from Sri/Smt. | T31: ='Exemp.(HRA+Other) & Other incom'!$A$4 -> SHAHID ALI | W31: =CONCATENATE("(",'Exemp.(HRA+Other) & Other incom'!$C$4,")") -> (Block Teacher)
C32: Address- | D32: ='Basic Deta'!$G$10 -> M.S. BASUDHAR | O32: Address- | P32: ='Basic Deta'!$G$10 -> M.S. BASUDHAR
C33: The sum of (Quarterly) | G33: =G34*3 -> Rs. 15330 | O33: The sum of (Quarterly) | S33: =S34*3 -> Rs. 15330
C34: Towards the House Rent (Monthly) @ | G34: ='Exemp.(HRA+Other) & Other incom'!$M$4 -> Rs. 5110 | O34: Towards the House Rent (Monthly) @ | S34: ='Exemp.(HRA+Other) & Other incom'!$M$4 -> Rs. 5110
C35: Per Month From :- | E35: 1 Oct., 2022 To 31 Dec., 2022 | O35: Per Month From :- | Q35: 1 Jan., 2023 To 31 March, 2023
C37: Rs. = | D37: =G33 -> 15330 | O37: Rs. = | P37: =S33 -> 15330
C39: Date:- | D39: =K29 -> 00:00:00 | O39: Date:- | P39: =W29 -> 00:00:00
G41: (Signature of House Owner) | S41: (Signature of House Owner)
G42: (Affix Revenue Stamp of Rs.1/-) | S42: (Affix Revenue Stamp of Rs.1/-)
G43: Name- | I43: =D30 -> 0 | S43: Name- | U43: =P30 -> 0
G44: ADDRESS | S44: ADDRESS
G45: ='Exemp.(HRA+Other) & Other incom'!$P$4 -> 0 | S45: ='Exemp.(HRA+Other) & Other incom'!$P$4 -> 0
G47: PAN NUMBER | J47: ='Exemp.(HRA+Other) & Other incom'!$Q$4 -> 0 | S47: PAN NUMBER | V47: ='Exemp.(HRA+Other) & Other incom'!$Q$4 -> 0
B61: 1 | C61: RECEIPT OF HOUSE RENT | N61: 2 | O61: RECEIPT OF HOUSE RENT
B62: (Under section 1 (13-A) of Income Tax Act) | N62: (Under section 1 (13-A) of Income Tax Act)
I64: Date :- | U64: Date :-
C65: I Owner | D65: ='Exemp.(HRA+Other) & Other incom'!$O$4 -> 0 | O65: I Owner | P65: ='Exemp.(HRA+Other) & Other incom'!$O$4 -> 0
D66: Received with Thanks from Sri/Smt. | H66: ='Exemp.(HRA+Other) & Other incom'!$A$4 -> SHAHID ALI | K66: =CONCATENATE("(",'Exemp.(HRA+Other) & Other incom'!$C$4,")") -> (Block Teacher) | P66: Received with Thanks from Sri/Smt. | T66: ='Exemp.(HRA+Other) & Other incom'!$A$4 -> SHAHID ALI | W66: =CONCATENATE("(",'Exemp.(HRA+Other) & Other incom'!$C$4,")") -> (Block Teacher)
C67: Address- | D67: ='Basic Deta'!$G$10 -> M.S. BASUDHAR | O67: Address- | P67: ='Basic Deta'!$G$10 -> M.S. BASUDHAR
C68: The sum of (Yearly) | G68: =G69*12 -> Rs. 61320 | O68: The sum of (Yearly) | S68: =G69*12 -> Rs. 61320
C69: Towards the House Rent (Monthly) @ | G69: ='Exemp.(HRA+Other) & Other incom'!$M$4 -> Rs. 5110 | O69: Towards the House Rent (Monthly) @ | S69: ='Exemp.(HRA+Other) & Other incom'!$M$4 -> Rs. 5110
C70: Per Month From :- | E70: 1 April, 2022 To 31 March, 2023 | O70: Per Month From :- | Q70: =E70 -> 1 April, 2022 To 31 March, 2023
C72: Rs. = | D72: =G68 -> 61320 | O72: Rs. = | P72: =G68 -> 61320
C74: Date:- | D74: =K64 -> 00:00:00 | O74: Date:- | P74: =K64 -> 00:00:00
G76: (Signature of House Owner) | S76: (Signature of House Owner)
G77: (Affix Revenue Stamp of Rs.1/-) | S77: (Affix Revenue Stamp of Rs.1/-)
G78: Name- | I78: =D65 -> 0 | S78: Name- | U78: =D65 -> 0
G79: ADDRESS | S79: ADDRESS
G80: ='Exemp.(HRA+Other) & Other incom'!$P$4 -> 0 | S80: ='Exemp.(HRA+Other) & Other incom'!$P$4 -> 0
G82: PAN NUMBER | J82: ='Exemp.(HRA+Other) & Other incom'!$Q$4 -> 0 | S82: PAN NUMBER | V82: ='Exemp.(HRA+Other) & Other incom'!$Q$4 -> 0
